Cogmind - Beta 16 @@@ ROGUE MODE // 2026.02.02 @ 13:48:02 Player: the Result: Destroyed by H-77 Assassin with High-powered Shotgun Performance ------------- Evolutions (7) 3500 Regions Visited (32) 6400 Robots Destroyed (336) 1680 Value Destroyed (11909) 11909 Prototype IDs (126) 2520 Alien Tech Used (2) 400 Bonus (8780) 8780 TOTAL SCORE: 35189 Bonus ------- High Alert Combat Kills 639 Follower Combat Kills 5413 Network Hubs Disabled 400 Aligned with FarCom 300 Met Data Miner 300 Met Imprinter 300 Was Imprinted 300 Met Zhirov 300 Built Enhanced Grunts 300 A7 Reached Mainframe 300 Met R17 at Cetus 500 Read Decrypted Archives 300 Friendly Fire -572 Cogmind --------- Core Integrity 0/1300 Matter 240/300 Energy 100/100 System Corruption 29% Temperature Cool (0) Movement Core (50) Location -3/Research Parts ------- > --- POWER (2) -------- (None) > --- PROPULSION (7) --- (None) > --- UTILITY (9) ------ (None) > --- WEAPON (3) ------- (None) > --- INVENTORY (5) ---- Zionite Composite Leg II Huge Storage Unit Peak State ------------ > --- POWER ------------ Zionite Heavy DM Reactor Quantum Reactor > --- PROPULSION ------- Myomer Leg Myomer Leg Zionite Composite Leg II Zionite Composite Leg II Enhanced Biometal Leg Enhanced Biometal Leg > --- UTILITY ---------- Advanced Cooling System Huge Storage Unit Enhanced Optical Array Experimental Sensor Array Advanced Signal Interpreter Advanced Terrain Scan Processor Zionite Weapon Casing Centrium Medium Armor Plating > --- WEAPON ----------- Zionite Phaser-M Zionite Phaser-M Zionite Phaser-M > --- INVENTORY -------- Light Antimatter Reactor Myomer Leg Advanced Thermal Generator Advanced Cooling System Energy Well Long-range Terrain Scanner Particle Accelerator Quantum Capacitor Improved Weapon Cycler Advanced Transmission Jammer Graphene Brace Advanced Force Field Advanced Force Field Authchip [Propulsion] Authchip [Device] Authchip [Processor] Authchip [Weapon] Transdimensional Reconstructor Zionite Laser-M Cooled Proton Cannon EMDS Matter Neutralizer Mini Smartbomb Launcher [Rating: 154] Favorites ----------- Power Quantum Reactor Engine Improved Deuterium Engine Power Core Neutrino Core Reactor Quantum Reactor Propulsion Light Treads Treads Light Treads Leg Armored Leg Wheel Wheel Flight Unit Field Propulsion Drive Utility High-capacity Storage Unit Device Experimental Sensor Array Storage High-capacity Storage Unit Processor Core Analyzer Hackware Hacking Suite Protection Medium Reactive Plating Weapon Gauss Cannon Energy Gun Zionite Phaser-M Energy Cannon Cooled Plasma Cannon Ballistic Gun Autogun Ballistic Cannon Gauss Cannon Launcher Mini Smartbomb Launcher Special Weapon Mining Laser Impact Weapon Impact Mace Slashing Weapon Great Axe Piercing Weapon Lance Special Melee Weapon Datajack Build | -11 -10 -10 -10 -9 -8 -8 -7 -7 -7 -7 -7 -7 -6 -6 -6 -6 -6 -6 -5 -5 -5 -5 -5 -5 -4 -4 -4 -4 -4 -4 -3 -3 ------- Run | Yrd Mat Min Exi Min Mat Sto Fac Was Fac Low Low Zio Pro Fac Was Fac Low Dat Pro Fac Ext Cet Arc Hub Fac Was Fac Upp Upp Zhi Pro Res Slots Evolved 14 | . . . . . 4 . 2 . . . . . . 2 . . . . . 2 . . . . 2 . . . . . . 2 Power 1 | . . . . . . . . . . . . . . . . . . . . 1 . . . . . . . . . . . . Propulsion 5 | . . . . . 2 . . . . . . . . 1 . . . . . 1 . . . . . . . . . . . 1 Utility 7 | . . . . . 1 . 2 . . . . . . 1 . . . . . . . . . . 2 . . . . . . 1 Weapon 1 | . . . . . 1 . . . . . . . . . . . . . . . . . . . . . . . . . . . Parts Attached 261 | 9 6 9 2 3 18 15 21 6 6 7 1 2 1 22 4 15 . . 5 9 9 10 . 11 23 . 8 3 4 4 9 19 Power 32 | 2 2 2 . . 3 2 2 1 . 1 . . . 2 . 1 . . 1 . 1 2 . 3 . . 1 . . . 1 5 Engine 13 | 2 2 2 . . 1 2 2 1 . 1 . . . . . . . . . . . . . . . . . . . . . . Core 5 | . . . . . 2 . . . . . . . . . . 1 . . . . 1 . . . . . . . . . . 1 Reactor 14 | . . . . . . . . . . . . . . 2 . . . . 1 . . 2 . 3 . . 1 . . . 1 4 Propulsion 67 | 2 . 3 . 2 5 4 5 2 . . . 1 1 3 . 8 . . . 4 3 3 . 1 8 . 3 . . 1 2 6 Treads 30 | 2 . 3 . 2 5 4 5 2 . . . 1 1 . . . . . . . . 3 . 1 . . . . . . . 1 Leg 33 | . . . . . . . . . . . . . . . . 8 . . . 4 3 . . . 8 . 3 . . 1 1 5 Wheel 3 | . . . . . . . . . . . . . . 3 . . . . . . . . . . . . . . . . . . Hover . | . . . . . . . . . . . . . . . . . . . . . . . . . . . . . . . . . Flight 1 | . . . . . . . . . . . . . . . . . . . . . . . . . . . . . . . 1 . Utility 87 | 2 1 1 . 1 4 2 4 1 3 5 1 . . 8 2 5 . . 4 3 1 1 . 7 11 . 2 2 1 2 6 7 Device 38 | 1 . 1 . . 1 2 1 1 1 1 . . . 4 2 3 . . . 1 1 . . 4 5 . . 1 1 1 2 4 Storage 8 | 1 1 . . 1 . . . . 1 1 . . . 1 . . . . 1 . . . . . 1 . . . . . . . Processor 10 | . . . . . . . 1 . . 1 1 . . 2 . 1 . . 1 . . . . 1 2 . . . . . . . Hackware 8 | . . . . . . . 2 . 1 1 . . . . . . . . . . . . . . . . . . . . 4 . Protection 23 | . . . . . 3 . . . . 1 . . . 1 . 1 . . 2 2 . 1 . 2 3 . 2 1 . 1 . 3 Artifact . | . . . . . . . . . . . . . . . . . . . . . . . . . . . . . . . . . Weapon 75 | 3 3 3 2 . 6 7 10 2 3 1 . 1 . 9 2 1 . . . 2 4 4 . . 4 . 2 1 3 1 . 1 Energy Gun 15 | 1 . . . . . 4 1 1 . . . . . 1 . 1 . . . . . 1 . . 3 . 1 . . . . 1 Energy Cannon 16 | . . 2 . . . 1 2 . . . . . . 3 1 . . . . 1 3 . . . 1 . . . 1 1 . . Ballistic Gun 14 | 2 2 . 2 . 3 1 . . . . . . . 1 . . . . . . . 3 . . . . . . . . . . Ballistic Cannon 17 | . . . . . 3 . 5 1 2 1 . 1 . 3 1 . . . . . . . . . . . . . . . . . Launcher 3 | . . . . . . . 1 . . . . . . . . . . . . . 1 . . . . . 1 . . . . . Special Weapon 2 | . 1 . . . . . . . . . . . . . . . . . . . . . . . . . . 1 . . . . Impact Weapon 1 | . . . . . . . . . 1 . . . . . . . . . . . . . . . . . . . . . . . Slashing Weapon 5 | . . . . . . 1 1 . . . . . . 1 . . . . . 1 . . . . . . . . 1 . . . Piercing Weapon 1 | . . . . . . . . . . . . . . . . . . . . . . . . . . . . . 1 . . . Special Melee Weapon 1 | . . 1 . . . . . . . . . . . . . . . . . . . . . . . . . . . . . . Unidentified Prototypes 38 | . . 1 . . . 7 1 . 1 . . . . 2 1 2 . . 4 1 . 4 . 2 5 . 1 . . 4 1 1 Corrupted Parts 10 | . . . . . . . . . . . . . . . . . . . . . 1 2 . 1 1 . 1 . . . . 4 System Corruption 36 | . . . . . . . . . . . . . . . . . . . . . 5 4 . 2 4 . 1 . . . . 20 Parts Lost 64 | . . 5 . . . . 4 . . . . . . 10 . . . . . 2 1 . . 6 2 1 . 1 . 1 15 16 Power 12 | . . 1 . . . . . . . . . . . 1 . . . . . . 1 . . 2 . . . . . . 3 4 Propulsion 22 | . . 3 . . . . 2 . . . . . . 4 . . . . . 1 . . . . . 1 . . . . 7 4 Utility 18 | . . . . . . . 1 . . . . . . 2 . . . . . . . . . 2 2 . . 1 . 1 3 6 Weapon 12 | . . 1 . . . . 1 . . . . . . 3 . . . . . 1 . . . 2 . . . . . . 2 2 Highest Loss Streak 11 | . . 3 . . . . 2 . . . . . . 10 . . . . . 1 1 . . 2 1 1 . 1 . 1 8 11 To Critical Strikes . | . . . . . . . . . . . . . . . . . . . . . . . . . . . . . . . . . Average Backups 18 | 2 12 14 13 18 18 19 19 20 19 19 20 20 20 19 20 19 20 20 20 18 19 19 19 18 19 20 22 22 23 22 15 3 Power . | . . . 1 1 1 1 1 1 1 1 1 1 1 1 2 1 1 1 1 . . . 1 . . . . 1 1 1 . . Propulsion 1 | . 2 2 1 3 3 3 2 . . . . 1 1 . 2 2 3 3 3 2 3 1 1 1 1 . . 1 2 1 . . Utility 10 | . 3 5 6 6 9 9 8 10 12 12 12 12 12 11 12 10 10 10 10 10 12 12 11 11 13 15 16 15 15 15 10 1 Weapon 5 | 1 4 4 4 5 5 6 7 8 6 6 6 6 6 5 3 5 6 6 6 5 4 4 6 5 4 5 5 5 5 4 3 1 Tool/Special . | . . . . . . . . . . . . . . . . . . . . . . . . . . . . . . . . . Unused Backups 47 | 1 3 1 . 2 5 4 6 1 2 . 1 1 . 2 . 5 . . 2 1 2 3 . . 1 . 1 . . . 2 1 Power 3 | . . . . . 2 . . . . . . . . . . . . . 1 . . . . . . . . . . . . . Propulsion 6 | . . . . . . . . . . . . . . . . 2 . . . 1 2 1 . . . . . . . . . . Utility 21 | . 2 1 . 2 1 2 . 1 1 . 1 . . 1 . 3 . . 1 . . 1 . . 1 . . . . . 2 1 Weapon 17 | 1 1 . . . 2 2 6 . 1 . . 1 . 1 . . . . . . . 1 . . . . 1 . . . . . Tool/Special . | . . . . . . . . . . . . . . . . . . . . . . . . . . . . . . . . . Average Slot Usage (%) 93 | . 100 96 100 100 97 99 98 93 92 91 92 90 92 85 86 96 100 82 100 99 99 89 82 79 95 96 96 100 100 86 64 38 Engine 6 | . 14 13 14 14 7 9 7 7 7 7 7 7 7 1 . 3 6 6 6 5 5 2 . . . . . . . . . . Reactor 2 | . . . . . . . . . . . . . . 4 6 . . . . 4 2 4 11 9 10 8 8 10 10 10 5 2 Treads 17 | . 28 28 28 28 35 36 29 24 23 23 23 23 23 16 . . . . . . . 6 17 17 4 . . . . . . . Leg 8 | . . . . . . . . . . . . . . . . 25 33 33 33 35 35 18 . . 22 29 29 31 31 31 16 3 Device 10 | . 14 14 14 14 9 9 6 7 7 7 7 7 7 14 20 19 20 20 16 10 9 9 5 7 11 10 9 9 10 11 11 11 Storage 7 | . 14 14 14 14 9 9 7 7 7 7 7 7 7 6 6 6 6 6 6 5 5 5 5 5 5 5 5 5 5 5 4 . Processor 10 | . . . . . . . 6 7 7 14 15 15 15 13 13 13 13 13 15 17 17 17 17 17 21 21 21 21 21 19 10 . Hackware 2 | . . . . . . . 12 15 15 3 . . . . . . . . . . . . . . . . . . . . 2 16 Protection 3 | . . . . . 8 8 2 . . 3 7 7 7 4 . . . . 1 . 1 1 5 3 3 5 5 5 5 5 1 . Energy Gun 1 | . 4 . . . . . . . . . . . . . . . . . . . . . . . 10 15 14 15 15 1 6 . Energy Cannon 4 | . . 11 14 . . . 5 . . . . . . 5 19 20 20 2 19 16 17 8 . 2 2 . . . . . 1 . Ballistic Gun 4 | . 22 11 1 28 15 . . . . . . . . . . . . . . . . 7 17 13 1 . . . . . . . Ballistic Cannon 9 | . . . . . 10 24 14 22 23 23 23 21 22 11 . . . . . . . . . . . . . . . . . . Peak Build Rating 154 | 7 11 17 12 13 33 36 51 60 60 62 62 64 63 76 65 85 85 85 87 100 102 138 138 140 153 146 151 152 152 152 154 83 Average Rating 68 | 6 9 10 11 12 25 33 46 57 58 61 61 61 62 68 63 79 85 68 85 98 96 110 138 135 144 139 145 150 151 129 94 53 On Entrance 76 | . 7 11 10 12 13 33 34 50 60 57 59 62 62 63 63 63 85 85 85 87 100 95 138 138 139 146 130 150 152 152 152 45 Avg Prop Armor Cover (%) 3 | . . . . . . 4 . . . . . . . . . 11 . . . . 3 16 . . 2 . 4 . . . . 15 Naked Turns 17 | . . . . . . . . . . . . . . . . . . . . . . . . . . . . . . . 7 10 Heaviest Build 164 | 15 32 34 31 50 80 78 79 73 75 101 97 101 97 102 84 80 80 80 99 92 106 106 100 123 164 139 145 153 139 144 141 41 Greatest Support 240 | 40 40 40 40 40 82 82 84 115 115 115 115 115 115 140 36 88 88 88 88 104 109 240 240 240 240 162 166 166 166 166 166 112 Greatest Overweight (x) 6 | . . . . 1 1 1 . . . . . . . 5 2 2 . . 1 . 1 1 . . 1 . 1 . . . 2 6 Average Overweight (x) . | . . . . . . . . . . . . . . 1 2 . . . . . . . . . . . . . . . . . Largest Inventory Capacity 25 | 8 15 15 15 20 20 20 20 20 20 20 20 20 20 20 20 20 20 20 20 20 20 20 20 20 25 25 25 25 25 25 25 5 Average Capacity 19 | 7 14 15 15 18 20 20 20 20 20 20 20 20 20 20 20 20 20 20 20 20 20 20 20 20 21 25 25 25 25 25 18 5 Most Carried 25 | 5 15 15 14 20 20 20 20 20 20 20 20 20 20 20 20 20 20 20 20 20 20 20 20 20 25 21 25 25 25 25 25 5 Average Carried 18 | 2 12 14 13 18 18 19 19 19 19 19 20 19 20 19 19 19 20 20 19 18 19 19 20 19 20 21 24 24 25 24 16 4 Final Capacity 25 | 8 15 15 15 20 20 20 20 20 20 20 20 20 20 20 20 20 20 20 20 20 20 20 20 20 25 25 25 25 25 25 5 5 Final Carried 25 | 5 15 13 14 19 20 20 20 20 20 20 20 20 20 20 20 20 20 20 20 20 20 20 20 20 21 21 25 25 25 25 5 2 Class Distribution -------------------- 19% | Tank 18% | Mutant 15% | Skirmisher 10% | Messiah-Skirmisher 8% | Scavenger-Tank 5% | Hacker-Skirmisher 4% | Commander-Skirmisher 3% | Scavenger-Skirmisher Dominant Class ---------------- Mutant | -10/Materials Mutant | -10/Mines Mutant | -10/Exiles Mutant | -9/Mines Scavenger-Tank | -8/Materials Commander-Tank | -8/Storage Hacker-Skirmisher | -7/Factory Hacker-Skirmisher | -7/Waste Hacker-Skirmisher | -7/Factory Tank | -7/Lower Caves Tank | -7/Lower Caves Tank | -7/Zion Tank | -6/Proximity Caves Tank | -6/Factory Scavenger-Skirmisher | -6/Waste Skirmisher | -6/Factory Skirmisher | -6/Lower Caves Mutant | -6/Data Miner Skirmisher | -5/Proximity Caves Skirmisher | -5/Factory Commander-Skirmisher | -5/Extension Commander-Skirmisher | -5/Cetus Commander-Skirmisher | -5/Archives Scavenger-Tank | -5/Hub_04(d) Messiah-Skirmisher | -4/Factory Messiah-Skirmisher | -4/Waste Messiah-Skirmisher | -4/Factory Messiah-Skirmisher | -4/Upper Caves Messiah-Skirmisher | -4/Upper Caves Messiah-Mutant | -4/Zhirov Messiah-Mutant | -3/Proximity Caves Mutant | -3/Research Resources | -11 -10 -10 -10 -9 -8 -8 -7 -7 -7 -7 -7 -7 -6 -6 -6 -6 -6 -6 -5 -5 -5 -5 -5 -5 -4 -4 -4 -4 -4 -4 -3 -3 ----------- Run | Yrd Mat Min Exi Min Mat Sto Fac Was Fac Low Low Zio Pro Fac Was Fac Low Dat Pro Fac Ext Cet Arc Hub Fac Was Fac Upp Upp Zhi Pro Res Matter Collected 14503 | 277 609 520 16 158 972 1192 1752 675 229 657 223 203 117 1122 438 242 . . 387 338 349 258 . 1518 695 . 254 329 120 103 670 80 Remotely . | . . . . . . . . . . . . . . . . . . . . . . . . . . . . . . . . . Salvage Created 13591 | 280 643 539 . 291 873 979 1405 176 176 405 42 . 125 782 . 700 . . 141 1143 833 52 . 1432 920 . 288 434 . 313 619 . Parts 662 | 31 56 27 . 15 43 57 81 2 11 21 2 . 3 45 . 14 . . 8 36 37 4 . 69 38 . 27 9 . 4 22 . Haulers Intercepted 21 | . 2 . . . 3 5 1 . 1 . . . . 1 . 4 . . . 2 . . . . 2 . . . . . . . Recyclers Shooed 20 | 1 2 . . 1 3 . 4 . . . . . . 1 . 1 . . . 1 2 . . 1 1 . 2 . . . . . Parts Field Recycled . | . . . . . . . . . . . . . . . . . . . . . . . . . . . . . . . . . Retrieved Matter . | . . . . . . . . . . . . . . . . . . . . . . . . . . . . . . . . . Parts Self-Destructed 84 | . . . . . . . . . . 21 9 . 9 . . . . . 19 . . . . . . . . 7 . . 19 . Prevented 3 | . . . . . . . . . . . . . . . . . . . . . . . . . . . . . . 1 2 . Parts Restored 1 | . . . . . . . . . . . . . . 1 . . . . . . . . . . . . . . . . . . Broken 1 | . . . . . . . . . . . . . . 1 . . . . . . . . . . . . . . . . . . Kills | -11 -10 -10 -10 -9 -8 -8 -7 -7 -7 -7 -7 -7 -6 -6 -6 -6 -6 -6 -5 -5 -5 -5 -5 -5 -4 -4 -4 -4 -4 -4 -3 -3 ------- Run | Yrd Mat Min Exi Min Mat Sto Fac Was Fac Low Low Zio Pro Fac Was Fac Low Dat Pro Fac Ext Cet Arc Hub Fac Was Fac Upp Upp Zhi Pro Res Combat Hostiles Destroyed 214 | . 9 16 . 3 8 16 28 1 3 13 1 . 4 17 . 4 . . 5 18 9 . . 20 15 . 8 3 . . 13 . Guns 65 | . 9 11 . 3 4 . . . . . . . . . . . . . . . . . . 20 10 . 1 3 . . 4 . Cannons 114 | . . 5 . . 4 16 27 1 3 13 1 . 3 9 . 2 . . 3 16 6 . . . . . 1 . . . 4 . AOE 28 | . . . . . . . 1 . . . . . 1 8 . 2 . . 2 . . . . . 5 . 6 . . . 3 . Classes Destroyed 25 | 3 6 2 . . 2 . 3 1 . 2 . . 1 2 . . . . . . 1 1 . . 1 . . . . . . . Worker 21 | 2 2 1 . . 1 4 4 . 1 . . . . 2 . . . . . . . . . 2 . . 2 . . . . . Builder 16 | . 3 . . . 1 1 5 . . . . . . 3 . . . . . . . . . 1 1 . 1 . . . . . Tunneler 13 | 8 3 1 . . . . 1 . . . . . . . . . . . . . . . . . . . . . . . . . Hauler 21 | . 2 . . . 3 5 1 . 1 . . . . 1 . 4 . . . 2 . . . . 2 . . . . . . . Recycler 20 | 1 1 2 . 2 2 3 6 . . . . . . 1 . 1 . . . . 1 . . . . . . . . . . . Mechanic 2 | . . . . . 2 . . . . . . . . . . . . . . . . . . . . . . . . . . . Operator 8 | . 1 . . . . 3 2 . 1 . . . . . . . . . . 1 . . . . . . . . . . . . Drone 3 | . . . . . . . . . . . . . 1 . . . . . . . . . . . . . . . . . 2 . Watcher 17 | . 2 . . . 3 1 3 . . . . . . 2 . . . . . 1 . . . 4 . . 1 . . . . . Swarmer 45 | . 4 9 . . . 4 4 . . 2 . . . 3 . . . . 4 4 . . . . 5 . 5 . . . 1 . Saboteur 1 | . . . . . . . . . . . . . . . . . . . . . . . . . 1 . . . . . . . Grunt 76 | . 5 4 . 3 7 2 17 . . 7 . . 2 . . 2 . . 1 5 . . . 11 3 . . 2 . . 5 . Brawler 2 | . . . . . . . . . . 1 . . 1 . . . . . . . . . . . . . . . . . . . Duelist 6 | . . . . . . . 2 . . . . . . . . . . . . 2 . . . . 1 . . . . . 1 . Protector 4 | . . . . . . . 1 . . . . . . 1 . . . . . . . . . 1 1 . . . . . . . Sentry 32 | . . . . . 2 10 2 . 2 1 1 . . 3 . . . . . 2 5 . . 1 1 . . . . . 2 . Demolisher 2 | . . 2 . . . . . . . . . . . . . . . . . . . . . . . . . . . . . . Specialist 2 | . . . . . . . . . . . . . . 2 . . . . . . . . . . . . . . . . . . Hunter 10 | . . . . . . . . . . 2 . . . 2 . . . . . 1 3 . . . 1 . 1 . . . . . Programmer 26 | . . . . . . . 2 . 1 . . . . 6 . 2 . . . 4 . . . 5 2 . 2 . . . 2 . Behemoth 1 | . . . . . . . . . . . . . . . . . . . . . 1 . . . . . . . . . . . Compactor 1 | . . . . . . . . 1 . . . . . . . . . . . . . . . . . . . . . . . . Lightning 2 | . . . . . . . . . . . . . . . . . . . . . . . . 2 . . . . . . . . Z-Light 1 | . . . . . . . . . . . . . . . . . . . . . . 1 . . . . . . . . . . Decomposer 1 | . . . . . . . . . . 1 . . . . . . . . . . . . . . . . . . . . . . Assembled 1 | . . 1 . . . . . . . . . . . . . . . . . . . . . . . . . . . . . . Wasp 2 | . . . . . . . . 2 . . . . . . . . . . . . . . . . . . . . . . . . Mutant 2 | . . . . . . . . . . . . . . 1 . . . . . . . . . . . . . 1 . . . . Best Kill Streak 13 | 3 3 3 . 2 5 6 6 1 2 5 1 . 3 13 . 3 . . 4 6 2 . . 7 5 . 5 2 . . 5 . Combat Bots Only 11 | . 3 3 . 2 3 5 4 1 1 5 1 . 3 11 . 2 . . 4 6 2 . . 5 5 . 5 2 . . 5 . Max Kills in Single Turn 4 | 2 1 1 . 1 2 1 3 1 1 2 1 . 1 2 . 2 . . 2 1 1 1 . 2 4 . 2 1 . . 1 . Gunslinging . | . . . . . . . . . . . . . . . . . . . . . . . . . . . . . . . . . Exploded 4 | . . . . . . . 1 . . . . . 1 2 . 2 . . 2 . . . . . 4 . 2 . . . 1 . Melee . | . . . . . . . . . . . . . . . . . . . . . . . . . . . . . . . . . Uniques/NPCs Destroyed . | . . . . . . . . . . . . . . . . . . . . . . . . . . . . . . . . . Combat | -11 -10 -10 -10 -9 -8 -8 -7 -7 -7 -7 -7 -7 -6 -6 -6 -6 -6 -6 -5 -5 -5 -5 -5 -5 -4 -4 -4 -4 -4 -4 -3 -3 -------- Run | Yrd Mat Min Exi Min Mat Sto Fac Was Fac Low Low Zio Pro Fac Was Fac Low Dat Pro Fac Ext Cet Arc Hub Fac Was Fac Upp Upp Zhi Pro Res Hostile Shots Fired 1599 | . 28 85 . 7 35 25 167 . 59 10 2 . 2 257 . 17 . . 25 77 29 . . 137 68 1 18 16 . . 171 363 Missed 470 | . 13 27 . 2 10 6 52 . 22 4 1 . . 65 . 6 . . 7 16 9 . . 21 22 . 6 4 . . 56 121 Hits 1129 | . 15 58 . 5 25 19 115 . 37 6 1 . 2 192 . 11 . . 18 61 20 . . 116 46 1 12 12 . . 115 242 Melee 11 | . . 1 . . . . 3 . . . . . . . . . . . . 4 . . . . . 1 . . . . 2 . Projectile 1118 | . 15 57 . 5 25 19 112 . 37 6 1 . 2 192 . 11 . . 18 57 20 . . 116 46 . 12 12 . . 113 242 AOE 15 | . . 10 . . . . . . . . . . . 1 . . . . . 1 . . . 1 1 . . 1 . . . . Critical Strikes 61 | . . 1 . . 2 1 6 . . . . . . 5 . 1 . . . 2 4 . . 14 2 2 . . . . 5 16 Actively Blocked 5 | . . . . . . . . . . . . . . . . . . . . . . . . 3 2 . . . . . . . Part Disruptions 4 | . . . . . . 1 . . . . . . . 1 . . . . . . . . . 1 1 . . . . . . . Damage Taken 20772 | . 163 875 . 71 407 403 1952 . 380 93 18 . 38 2537 . 173 . . 201 1443 476 . . 3013 1101 50 199 283 . 55 2562 4279 Core 2996 | . 14 84 . 15 . . 265 . 44 15 . . . 181 . 22 . . 56 79 56 . . 210 40 . 38 . . . 563 1314 Absorbed by Shields 497 | . . . . . . . . . . . . . . . . . . . . . 73 . . 272 152 . . . . . . . Reduced by Siege Mode 192 | . . . . . . . . . . 5 . . . 77 . . . . . . . . . 110 . . . . . . . . Redirected to Shielding 943 | . . . . . . . . . . . . . . . . . . . . . . . . 352 209 . 23 95 . . 131 133 Ignored by Resistances 776 | . . . . . . . . . . . . . . 492 . . . . 79 . . . . 205 . . . . . . . . Regen/Repaired (Parts) 1384 | . 335 . . . 392 110 11 166 148 27 . 62 . . . 133 . . . . . . . . . . . . . . . . Core Remaining (%) 68 | 100 . . . 54 . 100 . . . . . . 53 . . . . . 69 . . . . 65 . . . . . . 38 . Volleys Fired 1094 | 21 67 62 3 12 65 55 120 20 10 24 8 . 4 66 . 58 . . 13 84 34 1 . 142 68 . 37 19 5 7 81 8 Largest 3 | 2 2 2 1 2 3 3 3 3 3 3 3 . 3 3 . 3 . . 3 3 3 1 . 3 3 . 3 3 3 3 3 1 Hottest 315 | 70 100 136 23 46 120 120 245 120 120 120 120 . 120 315 . 105 . . 105 300 270 240 . 160 219 . 219 219 219 219 219 73 Shots Fired 2202 | 41 128 111 3 24 161 130 273 60 24 74 11 . 10 121 . 96 1 . 37 183 60 4 . 248 147 . 58 55 14 9 111 8 Gun 932 | 41 122 68 3 24 99 . 2 . . . . . . . . . . . . . . 3 . 231 136 . 50 55 14 3 77 4 Cannon 1222 | . . 32 . . 62 130 271 60 24 74 11 . 9 110 . 96 1 . 35 183 60 1 . 17 9 . 3 . . 6 24 4 Launcher 31 | . . . . . . . . . . . . . 1 11 . . . . 2 . . . . . 2 . 5 . . . 10 . Special 17 | . 6 11 . . . . . . . . . . . . . . . . . . . . . . . . . . . . . . Kinetic 1225 | 21 106 68 3 24 161 130 222 60 24 74 11 . 9 77 . . . . . . . 2 . 231 2 . . . . . . . Thermal 630 | 20 22 43 . . . . 51 . . . . . . 33 . 96 1 . 35 183 52 2 . 17 42 . 1 . . . 28 4 Explosive 31 | . . . . . . . . . . . . . 1 11 . . . . 2 . . . . . 2 . 5 . . . 10 . Electromagnetic 36 | . . . . . . . . . . . . . . . . . . . . . 8 . . . 4 . 3 . . 6 11 4 Phasic 280 | . . . . . . . . . . . . . . . . . . . . . . . . . 97 . 49 55 14 3 62 . Robot Hit Streak 40 | 5 9 7 . 5 12 8 18 13 9 15 9 . 8 28 . 16 . . 3 24 20 2 . 8 40 . 9 8 . 9 15 1 Robot Miss Streak 10 | 2 7 5 . 2 5 5 10 2 3 1 . . 1 6 . 4 3 . 5 4 2 1 . 6 5 . 1 4 . . 6 4 Penetration Max 1 | . . . . . . . . . . 1 . . . 1 . . . . . . . . . 1 . . . . . 1 . . Secondary Targets 10 | . . . . . 3 . . . . . . . . . . . . . . . . . . 4 2 . . . . . 1 . Max Gunslinging Chain 1 | . . . . . 1 . . . . . . . . . . . . . . . . . . 1 1 . . . . . 1 . Capacitor 48 | . . . . . . . . . . . . . . . . . . . . . . . . . . . . . . . 48 . Shots Hit Robots 1066 | 24 55 51 4 14 74 65 146 39 10 38 3 . 8 62 . 36 . . 8 80 42 2 . 112 91 . 12 28 . 6 55 1 Core Hits 515 | 12 26 23 . 10 32 29 72 7 7 17 2 . 6 51 . 19 . . 7 34 15 3 . 51 33 . 15 10 . 2 31 1 Critical Kills 16 | . 1 2 . . . . 1 . . . . . . . . 1 . . . 1 . . . 10 . . . . . . . . Critical Parts Destroyed 13 | . . . . . . . . . . . . . . . . . . . . . . . . 13 . . . . . . . . Critical Strikes 64 | 1 2 2 . . . 7 6 1 . 1 1 . 1 3 . 1 . . . 1 . . . 23 7 . 1 3 . 1 2 . Burn 2 | 1 1 . . . . . . . . . . . . . . . . . . . . . . . . . . . . . . . Meltdown 3 | . . . . . . . 1 . . . . . . . . 1 . . . 1 . . . . . . . . . . . . Destroy 26 | . 1 2 . . . . . . . . . . . . . . . . . . . . . 23 . . . . . . . . Blast 19 | . . . . . . 7 5 1 . 1 1 . 1 3 . . . . . . . . . . . . . . . . . . Corrupt 2 | . . . . . . . . . . . . . . . . . . . . . . . . . 1 . . . . 1 . . Intensify 12 | . . . . . . . . . . . . . . . . . . . . . . . . . 6 . 1 3 . . 2 . Melee Attacks 31 | . . . 4 . . 14 12 . . . . . . 1 . . . . . . . . . . . . . . . . . . Impact . | . . . . . . . . . . . . . . . . . . . . . . . . . . . . . . . . . Slashing 27 | . . . . . . 14 12 . . . . . . 1 . . . . . . . . . . . . . . . . . . Piercing . | . . . . . . . . . . . . . . . . . . . . . . . . . . . . . . . . . Sneak Attacks 14 | . . . 4 . . 9 1 . . . . . . . . . . . . . . . . . . . . . . . . . Combat Hostiles . | . . . . . . . . . . . . . . . . . . . . . . . . . . . . . . . . . Follow-up Attacks . | . . . . . . . . . . . . . . . . . . . . . . . . . . . . . . . . . Damage Inflicted 38037 | 319 898 1021 . 227 1561 2367 4917 1072 361 1059 87 . 292 3425 . 1428 . . 474 3008 1706 76 . 3756 4047 . 1446 1102 . 491 2789 108 Guns 12630 | 319 837 565 . 217 806 . 21 . . . . . . . . . . . . . . 43 . 3450 3347 . 389 1102 . . 1491 43 Cannons 18867 | . . 330 . . 707 1655 4222 1072 334 1050 87 . 225 1979 . 1247 . . 275 2790 1591 33 . 182 178 . 162 . . 149 599 . Explosions 5008 | . . 99 . . . . 485 . . . . . 67 1412 . 146 . . 199 218 . . . . 496 . 845 . . 342 699 . Melee 804 | . . . . . . 685 119 . . . . . . . . . . . . . . . . . . . . . . . . . Ramming 728 | . 61 27 . 10 48 27 70 . 27 9 . . . 34 . 35 . . . . 115 . . 124 26 . 50 . . . . 65 Kinetic 16203 | 130 749 565 . 217 1513 1655 3450 1072 334 1050 87 . 225 1609 . . . . . . . 43 . 3450 54 . . . . . . . Thermal 10090 | 189 88 429 . . . . 793 . . . . . . 370 . 1247 . . 275 3008 1123 33 . 182 1097 . 210 . . 342 661 43 Explosive 4139 | . . . . . . . 485 . . . . . 67 1412 . 146 . . 199 . . . . . 496 . 635 . . . 699 . Electromagnetic 1137 | . . . . . . . . . . . . . . . . . . . . . 468 . . . 145 . 162 . . 149 213 . Impact . | . . . . . . . . . . . . . . . . . . . . . . . . . . . . . . . . . Slashing 804 | . . . . . . 685 119 . . . . . . . . . . . . . . . . . . . . . . . . . Piercing . | . . . . . . . . . . . . . . . . . . . . . . . . . . . . . . . . . Phasic 4936 | . . . . . . . . . . . . . . . . . . . . . . . . . 2229 . 389 1102 . . 1216 . Highest Corruption 48 | . . . . . . 2 1 1 2 3 3 3 . 14 14 15 15 15 15 2 7 11 11 48 4 10 11 11 11 11 13 29 Average Corruption 8 | . . . . . . 1 1 1 1 2 3 3 . 11 14 14 15 15 15 1 6 8 11 29 2 8 10 11 11 11 12 15 Corruption Purged 8 | . . . . . . 2 1 . . . . . . . . . . . . . . . . . 5 . . . . . . . Corruption Blocked . | . . . . . . . . . . . . . . . . . . . . . . . . . . . . . . . . . Effects 555 | . . . . . . 15 16 5 12 28 23 4 . 22 20 56 11 2 15 17 36 19 3 97 4 3 30 30 30 7 40 10 Message Errors 148 | . . . . . . 8 3 1 3 7 4 1 . 6 6 20 4 . 5 4 8 4 . 19 3 . 9 10 8 . 13 2 Matter Fused 123 | . . . . . . 3 1 2 4 8 6 1 . 6 7 11 4 1 4 3 12 6 2 12 1 1 6 7 5 3 3 4 Heat Flow Errors 55 | . . . . . . 1 . . 1 2 3 . . 4 2 2 . 1 2 2 5 2 . 12 . . 3 3 2 2 6 . Energy Discharges 60 | . . . . . . . 4 2 3 4 3 . . 3 2 7 1 . 1 2 2 2 . 9 . 1 2 2 7 . 3 . Parts Rejected 5 | . . . . . . . . . . . . . . . . 1 . . . . . . . 2 . . 1 . . . . 1 Parts Fused 7 | . . . . . . . 1 . 1 . . . . . . . . . 1 1 . . . 1 . . . . 1 . 1 . Data Loss (minor) 60 | . . . . . . . 3 . . 3 3 2 . 2 2 7 . . . 2 2 . 1 12 . 1 6 1 4 1 7 1 Data Loss (major) 20 | . . . . . . 1 . . . 1 3 . . . . 2 1 . . . 3 1 . 4 . . . 2 1 1 . . Misfires 19 | . . . . . . 1 1 . . 2 1 . . . . 1 1 . 2 1 . 2 . 4 . . 1 1 . . 1 . Alerts 15 | . . . . . . . 1 . . 1 . . . . 1 1 . . . 1 2 2 . 2 . . . 3 1 . . . Misdirections 6 | . . . . . . . . . . . . . . . . 2 . . . . . . . . . . . . . . 2 2 Weapon Failures 37 | . . . . . . 1 2 . . . . . . 1 . 2 . . . 1 2 . . 20 . . 2 1 1 . 4 . Overload Shots 45 | . . . . . . . . . . . . . . 21 . 8 . . . 5 7 1 . . 2 . 1 . . . . . Effects 4 | . . . . . . . . . . . . . . 2 . 1 . . . . 1 . . . . . . . . . . . Energy Bleed 2 | . . . . . . . . . . . . . . 1 . 1 . . . . . . . . . . . . . . . . Short Circuit 2 | . . . . . . . . . . . . . . 1 . . . . . . 1 . . . . . . . . . . . Overflow Damage 1346 | . . 7 . . 13 291 215 . 17 21 . . . 86 . 31 . . 9 195 7 . . 30 49 . 106 . . 210 59 . Projectiles 403 | . . 7 . . 13 18 50 . 17 20 . . . 39 . 31 . . 9 122 . . . 29 . . 10 . . 1 37 . Explosions 607 | . . . . . . . 111 . . . . . . 47 . . . . . 73 . . . . 49 . 96 . . 209 22 . Melee 336 | . . . . . . 273 54 . . 1 . . . . . . . . . . 7 . . 1 . . . . . . . . Knockbacks 70 | . . 1 . . 4 7 36 . 1 3 . . . 12 . 1 . . . . 2 . . 2 1 . . . . . . . Impact 9 | . . 1 . . . . . . 1 . . . . 1 . 1 . . . . 2 . . 2 1 . . . . . . . Kinetic 53 | . . . . . 4 6 31 . . 3 . . . 9 . . . . . . . . . . . . . . . . . . Secondary 8 | . . . . . . 1 5 . . . . . . 2 . . . . . . . . . . . . . . . . . . Self-Inflicted Damage 437 | . . . . . . . 133 . . . . . . 139 . 6 . . . 60 . . . 25 . . . . . 55 . 19 Shots 13 | . . . . . . . 2 . . . . . . 8 . . . . . 1 . . . 1 . . . . . 1 . . Rammed 64 | . 9 2 . 2 3 2 9 . 2 . . . . 3 . 1 . . . . . . . 11 . . . . . . . 20 Targets Rammed 87 | . 11 4 . 2 4 4 10 . 3 1 . . . 4 . 2 . . . . 5 . . 12 2 . 2 . . . . 21 Kicked 11 | . . . . . . . . . . . . . . . . 1 . . . . 5 . . . 2 . 2 . . . . 1 Crushed 12 | . 2 2 . . 1 2 1 . 1 1 . . . 1 . . . . . . . . . 1 . . . . . . . . Highest Temperature 416 | 72 54 380 3 37 112 349 329 258 171 277 275 . 144 214 111 186 . 117 99 194 372 190 . 416 373 . 276 358 262 194 411 17 Average Temperature 83 | 23 11 86 3 10 21 77 82 76 46 82 73 . 63 80 66 87 . 70 45 55 100 80 . 118 116 . 76 103 95 98 120 17 Received Heat Transfer 3511 | . 21 81 . 39 252 99 792 . 105 9 9 . 18 78 . 12 . . 18 219 166 . . 375 74 . . 51 . . 481 612 Effects 24 | . . 3 . . . 1 4 . . . . . . . . . . . . . 1 . . 6 9 . . . . . . . Shutdowns 1 | . . . . . . . . . . . . . . . . . . . . . . . . . 1 . . . . . . . Energy Bleed 9 | . . 1 . . . 1 1 . . . . . . . . . . . . . 1 . . 3 2 . . . . . . . Interference 11 | . . 2 . . . . 3 . . . . . . . . . . . . . . . . 1 5 . . . . . . . Matter Decay 1 | . . . . . . . . . . . . . . . . . . . . . . . . 1 . . . . . . . . Short Circuit 1 | . . . . . . . . . . . . . . . . . . . . . . . . . 1 . . . . . . . Damage (minor) 1 | . . . . . . . . . . . . . . . . . . . . . . . . 1 . . . . . . . . Siege Activations 5 | . . . . . . . . . . 2 1 . . 1 . . . . . . . . . 1 . . . . . . . . Total Turns 140 | . . . . . . . . . . 74 5 . . 15 . . . . . . . . . 46 . . . . . . . . Longest Duration 53 | . . . . . . . . . . 53 5 . . 15 . . . . . . . . . 46 . . . . . . . . Martial Activations . | . . . . . . . . . . . . . . . . . . . . . . . . . . . . . . . . . Shielding Activations . | . . . . . . . . . . . . . . . . . . . . . . . . . . . . . . . . . Robots Disrupted . | . . . . . . . . . . . . . . . . . . . . . . . . . . . . . . . . . Combat Hostiles . | . . . . . . . . . . . . . . . . . . . . . . . . . . . . . . . . . Robots Corrupted 5 | . . . . . . . . . . . . . . . . . . . . . 2 . . . 1 . . . . 1 1 . Combat Hostiles 3 | . . . . . . . . . . . . . . . . . . . . . 1 . . . . . . . . 1 1 . Parts Fried 13 | . . . . . . . . . . . . . . . . . . . . . 9 . . 1 . . 1 . . . 2 . Impact Corruptions 3 | . . . . . . . . . . 1 . . . . . . . . . . 1 . . 1 . . . . . . . . Robots Melted 6 | . . . . . . . 1 . . . . . . . . 1 . . . 2 2 . . . . . . . . . . . Combat Hostiles 4 | . . . . . . . . . . . . . . . . . . . . 2 2 . . . . . . . . . . . Parts Melted 33 | . 1 . . . . . 2 . . . . . . 6 . 2 . . 1 14 7 . . . . . . . . . . . Heat Transferred 13504 | 629 333 692 . . . . 749 . . . . . . 520 . 1900 . . 400 4210 1750 25 . 250 1031 . 150 . . 162 666 37 Parts Sabotaged . | . . . . . . . . . . . . . . . . . . . . . . . . . . . . . . . . . Parts Stolen . | . . . . . . . . . . . . . . . . . . . . . . . . . . . . . . . . . Parts Stripped . | . . . . . . . . . . . . . . . . . . . . . . . . . . . . . . . . . Power Chain Reactions 2 | . . . . . . . . . . . . . . . . . . . . . . . . . . . 1 . . 1 . . Alert | -11 -10 -10 -10 -9 -8 -8 -7 -7 -7 -7 -7 -7 -6 -6 -6 -6 -6 -6 -5 -5 -5 -5 -5 -5 -4 -4 -4 -4 -4 -4 -3 -3 ------- Run | Yrd Mat Min Exi Min Mat Sto Fac Was Fac Low Low Zio Pro Fac Was Fac Low Dat Pro Fac Ext Cet Arc Hub Fac Was Fac Upp Upp Zhi Pro Res Maximum Alert Level 3 | . . 1 . . . 2 2 1 3 . . . . 1 . 3 . . . 1 1 1 2 3 3 1 1 . . . . 2 Low Security (%) 60 | 100 100 93 . 100 100 54 13 87 34 . . . . 99 100 14 . . . 55 99 62 73 12 . . 90 . . . . . Level 1 19 | . . 6 . . . 31 37 12 25 . . . . . . 23 . . . 44 . 37 13 53 4 100 9 . . . . 72 Level 2 13 | . . . . . . 14 48 . 13 . . . . . . 50 . . . . . . 12 12 43 . . . . . . 27 Level 3 5 | . . . . . . . . . 26 . . . . . . 12 . . . . . . . 20 51 . . . . . . . Level 4 . | . . . . . . . . . . . . . . . . . . . . . . . . . . . . . . . . . Level 5 . | . . . . . . . . . . . . . . . . . . . . . . . . . . . . . . . . . High Security . | . . . . . . . . . . . . . . . . . . . . . . . . . . . . . . . . . Max Security . | . . . . . . . . . . . . . . . . . . . . . . . . . . . . . . . . . Peak Influence 942 | 15 169 236 . 63 148 644 687 238 942 . . . . 200 60 720 . . . 248 203 258 430 880 813 276 307 . . . . 494 Initial 429 | . 3 61 . . . . 282 238 . . . . . 150 60 . . . . 18 79 104 31 150 429 276 144 . . . . 354 Average 222 | 2 36 85 . 8 41 215 434 92 393 . . . . 94 11 468 . . . 165 113 173 121 410 633 242 139 . . . . 373 Influence Increases 15041 | 55 416 460 . 156 499 1390 1271 49 1236 290 20 . 209 884 . 1403 . . 289 724 805 377 449 1354 991 . 533 90 . 15 420 656 Destroy 0b10 Robot/C 6700 | . 180 300 . 100 240 620 620 . 420 260 20 . 100 380 . 560 . . 220 360 400 160 200 400 520 . 180 60 . . 220 180 Destroy 0b10 Robot/NC 725 | 55 70 20 . 10 65 90 110 . 30 . . . 10 50 . 30 . . . 20 20 10 . 40 25 . 30 10 . 15 10 5 Destroy Leader 1326 | . 58 60 . 20 72 174 118 . 104 30 . . 20 96 . 138 . . 30 76 34 . . 88 114 . 34 10 . . 10 40 Allied During Kill 2172 | . . . . 13 15 300 44 . 356 . . . 64 68 . 493 . . 39 . 305 170 200 2 49 . 6 10 . . . 38 Successful Hack 227 | . 9 . . 13 28 23 55 . 47 . . . . 24 . 7 . . . 14 . . . . . . 7 . . . . . Select Force Hacks 150 | . 60 . . . . . 30 . . . . . . 30 . . . . . . . . . . . . 30 . . . . . Disable Machine 1080 | . 15 15 . . 45 120 150 . 120 . . . . 15 . 120 . . . 45 . 15 15 285 60 . 60 . . . . . Destroy Structure 1641 | . 9 20 . . 19 48 69 49 159 . . . . 71 . 55 . . . 194 46 22 34 404 208 . 186 . . . . 48 Advance Influence 450 | . . . . . . . . . . . . . . 150 . . . . . . . . . . . . . . . . . 300 Partial Spotted 30 | . . . . . . . 15 . . . . . . . . . . . . . . . . . . . . . . . . 15 Lose Combat Pursuer 540 | . 15 45 . . 15 15 60 . . . . . 15 . . . . . . 15 . . . 135 15 . . . . . 180 30 Influence Decreases 14777 | 50 263 618 . 156 499 770 1211 729 380 961 205 . 209 711 173 696 383 324 259 591 780 486 98 906 1079 584 452 377 . 15 339 473 Entered New Map 3599 | . 2 97 . . . . 338 442 . 317 36 . . . 113 . 263 324 . 12 84 84 48 280 449 514 62 107 . . . 27 Time Decay 8911 | 50 261 471 . 156 342 580 693 267 280 634 169 . 189 538 60 416 120 . 199 559 526 262 30 546 510 40 350 228 . 5 224 206 Lost Part 594 | . . 50 . . . . 40 . . . . . . 89 . . . . . 20 10 . . 60 20 10 . 10 . 10 115 160 Lost Ally 1386 | . . . . . 20 40 140 20 100 10 . . 20 84 . 280 . . 60 . 160 140 20 20 100 20 40 32 . . . 80 Purge Threat 287 | . . . . . 137 150 . . . . . . . . . . . . . . . . . . . . . . . . . . Squads Dispatched 68 | . 3 . . . . 4 9 . 6 . . . . 8 . 7 . . . 8 1 . . 8 7 . 3 . . . 1 3 Investigation 11 | . 2 . . . . . 2 . 1 . . . . 1 . . . . . 2 1 . . . . . 2 . . . . . Extermination 19 | . . . . . . . 2 . 1 . . . . 2 . 3 . . . 5 . . . 2 2 . 1 . . . . 1 Reinforcement 22 | . 1 . . . . 4 2 . 3 . . . . 2 . 3 . . . 1 . . . 2 2 . . . . . . 2 Assault 10 | . . . . . . . 3 . 1 . . . . . . 1 . . . . . . . 1 3 . . . . . 1 . Garrison 6 | . . . . . . . . . . . . . . 3 . . . . . . . . . 3 . . . . . . . . Intercept . | . . . . . . . . . . . . . . . . . . . . . . . . . . . . . . . . . Searches Triggered . | . . . . . . . . . . . . . . . . . . . . . . . . . . . . . . . . . Data Miner Redirects 2 | . . . . . . . . . . . . . . . . . . . . 1 . . . . . . 1 . . . . . Construction Impeded 1 | . . . . . . 1 . . . . . . . . . . . . . . . . . . . . . . . . . . Haulers Reinforced 8 | . . . . . . . . . 2 . . . . 1 . 3 . . . 1 . . . . 1 . . . . . . . Active Scanning Responses . | . . . . . . . . . . . . . . . . . . . . . . . . . . . . . . . . . Cargo Convoy Interrupts 1 | . . . . . . . . . . . . . . 1 . . . . . . . . . . . . . . . . . . Stealth | -11 -10 -10 -10 -9 -8 -8 -7 -7 -7 -7 -7 -7 -6 -6 -6 -6 -6 -6 -5 -5 -5 -5 -5 -5 -4 -4 -4 -4 -4 -4 -3 -3 --------- Run | Yrd Mat Min Exi Min Mat Sto Fac Was Fac Low Low Zio Pro Fac Was Fac Low Dat Pro Fac Ext Cet Arc Hub Fac Was Fac Upp Upp Zhi Pro Res Distress Signals 14 | . . . . . . 1 2 . . . . . 1 1 . 2 . . . . 1 2 . 2 1 . . . . . . 1 Communications Jammed . | . . . . . . . . . . . . . . . . . . . . . . . . . . . . . . . . . Distress Signals . | . . . . . . . . . . . . . . . . . . . . . . . . . . . . . . . . . Times Spotted 437 | . 23 17 . 5 25 31 38 6 22 7 3 . 5 30 . 25 . . 11 25 15 5 . 43 28 5 7 5 . . 39 17 Peak Tracking Total 12 | . 3 3 9 2 5 5 5 2 5 5 3 . 4 12 . 5 . . 5 6 3 5 . 7 5 5 3 3 . . 10 8 Tactical Retreats 27 | . 1 3 . . 1 1 2 . . . . . 1 . . . . . . 1 . . . 8 1 1 . . . . 5 2 Traps | -11 -10 -10 -10 -9 -8 -8 -7 -7 -7 -7 -7 -7 -6 -6 -6 -6 -6 -6 -5 -5 -5 -5 -5 -5 -4 -4 -4 -4 -4 -4 -3 -3 ------- Run | Yrd Mat Min Exi Min Mat Sto Fac Was Fac Low Low Zio Pro Fac Was Fac Low Dat Pro Fac Ext Cet Arc Hub Fac Was Fac Upp Upp Zhi Pro Res Traps Triggered 17 | . 1 . . . 3 3 3 . . . . . . 1 . 1 . . . . 2 . . 2 1 . . . . . . . Indirectly . | . . . . . . . . . . . . . . . . . . . . . . . . . . . . . . . . . Trap Hack Attempts . | . . . . . . . . . . . . . . . . . . . . . . . . . . . . . . . . . Triggered . | . . . . . . . . . . . . . . . . . . . . . . . . . . . . . . . . . Disarmed . | . . . . . . . . . . . . . . . . . . . . . . . . . . . . . . . . . Reprogrammed . | . . . . . . . . . . . . . . . . . . . . . . . . . . . . . . . . . Reused . | . . . . . . . . . . . . . . . . . . . . . . . . . . . . . . . . . Traps Extracted . | . . . . . . . . . . . . . . . . . . . . . . . . . . . . . . . . . Installed . | . . . . . . . . . . . . . . . . . . . . . . . . . . . . . . . . . Triggered . | . . . . . . . . . . . . . . . . . . . . . . . . . . . . . . . . . Machines | -11 -10 -10 -10 -9 -8 -8 -7 -7 -7 -7 -7 -7 -6 -6 -6 -6 -6 -6 -5 -5 -5 -5 -5 -5 -4 -4 -4 -4 -4 -4 -3 -3 ---------- Run | Yrd Mat Min Exi Min Mat Sto Fac Was Fac Low Low Zio Pro Fac Was Fac Low Dat Pro Fac Ext Cet Arc Hub Fac Was Fac Upp Upp Zhi Pro Res Machines Disabled 81 | . 1 1 2 . 3 8 10 . 8 3 . . . 1 . 8 . . . 3 1 1 1 19 4 . 4 . . 3 . . Max in Single Turn 7 | . 1 1 1 . 1 1 6 . 1 1 . . . 1 . 1 . . . 1 . 1 . 7 1 . 2 . . 2 . . Garrison Access 4 | . . . . . . . 1 . 1 . . . . 1 . . . . . . . . . . . . 1 . . . . . Network Hub 2 | . . . . . . . . . . . . . . . . . . . . . . . . 2 . . . . . . . . Machines Repaired . | . . . . . . . . . . . . . . . . . . . . . . . . . . . . . . . . . Machines Dismantled . | . . . . . . . . . . . . . . . . . . . . . . . . . . . . . . . . . Machines Sabotaged . | . . . . . . . . . . . . . . . . . . . . . . . . . . . . . . . . . Overloaded Fab Kills . | . . . . . . . . . . . . . . . . . . . . . . . . . . . . . . . . . Hacking | -11 -10 -10 -10 -9 -8 -8 -7 -7 -7 -7 -7 -7 -6 -6 -6 -6 -6 -6 -5 -5 -5 -5 -5 -5 -4 -4 -4 -4 -4 -4 -3 -3 --------- Run | Yrd Mat Min Exi Min Mat Sto Fac Was Fac Low Low Zio Pro Fac Was Fac Low Dat Pro Fac Ext Cet Arc Hub Fac Was Fac Upp Upp Zhi Pro Res Machines Accessed 89 | . 9 . 2 1 7 10 14 . 10 1 . . . 9 . 3 . 4 . 5 . . 1 1 1 . 5 1 1 4 . . Terminals 33 | . 6 . . 1 5 8 7 . 5 1 . . . . . . . . . . . . . . . . . . . . . . Fabricators 6 | . . . . . . . 1 . 1 . . . . . . . . . . 2 . . . . . . 2 . . . . . Repair Stations 10 | . 1 . . . 2 2 1 . 2 . . . . 1 . 1 . . . . . . . . . . . . . . . . Recycling Units 16 | . 2 . . . . . 2 . . . . . . 4 . 2 . . . 3 . . . . 1 . 2 . . . . . Scanalyzers 4 | . . . . . . . 2 . 1 . . . . 1 . . . . . . . . . . . . . . . . . . Garrison Access 7 | . . . . . . . 1 . 1 . . . . 3 . . . . . . . . . 1 . . 1 . . . . . Total Hacks 280 | . 24 . 2 2 29 34 32 . 23 3 . . . 16 . 10 . 34 . 9 . . 25 2 1 . 16 1 1 16 . . Successful 185 | . 11 . 2 2 21 18 17 . 13 3 . . . 5 . 4 . 34 . 3 . . 25 . 1 . 8 1 1 16 . . Failed 95 | . 13 . . . 8 16 15 . 10 . . . . 11 . 6 . . . 6 . . . 2 . . 8 . . . . . Catastrophic 17 | . 1 . . . . 1 3 . 2 . . . . 3 . 1 . . . 2 . . . 1 . . 3 . . . . . Database Lockouts . | . . . . . . . . . . . . . . . . . . . . . . . . . . . . . . . . . Manual 216 | . 13 . 1 2 15 10 14 . 7 . . . . 19 . 40 . . . 22 10 1 . 18 10 . 29 . . . . 5 Terminals 92 | . 16 . . 2 19 24 18 . 10 3 . . . . . . . . . . . . . . . . . . . . . . Fabricators 21 | . . . . . . . 3 . 3 . . . . . . . . . . 5 . . . . . . 10 . . . . . Repair Stations 38 | . 3 . . . 10 10 2 . 6 . . . . 2 . 5 . . . . . . . . . . . . . . . . Recycling Units 30 | . 5 . . . . . 4 . . . . . . 8 . 5 . . . 4 . . . . 1 . 3 . . . . . Scanalyzers 10 | . . . . . . . 4 . 3 . . . . 3 . . . . . . . . . . . . . . . . . . Garrison Access 10 | . . . . . . . 1 . 1 . . . . 3 . . . . . . . . . 2 . . 3 . . . . . Terminal Hacks 110 | . 5 . 2 2 8 9 2 . 2 3 . . . . . . . 34 . . . . 25 . . . . 1 1 16 . . Record 45 | . . . 1 . . . . . . 3 . . . . . . . 11 . . . . 25 . . . . . . 5 . . Part Schematic 19 | . 1 . . 1 1 . . . . . . . . . . . . 13 . . . . . . . . . . . 3 . . Robot Schematic 7 | . . . . . . . . . . . . . . . . . . 7 . . . . . . . . . . . . . . Robot Analysis 6 | . 1 . . 1 . . . . . . . . . . . . . . . . . . . . . . . . . 4 . . Prototype ID Bank 13 | . 2 . . . 2 2 . . . . . . . . . . . 3 . . . . . . . . . . . 4 . . Open Door 6 | . . . . . . 4 . . . . . . . . . . . . . . . . . . . . . 1 1 . . . Level Access Points 1 | . . . . . . . 1 . . . . . . . . . . . . . . . . . . . . . . . . . Branch Access Points 2 | . . . . . . . 1 . 1 . . . . . . . . . . . . . . . . . . . . . . . Terminal Index 1 | . . . . . . . . . 1 . . . . . . . . . . . . . . . . . . . . . . . Alert Level 1 | . . . . . 1 . . . . . . . . . . . . . . . . . . . . . . . . . . . Unreport Threat 2 | . . . . . 1 1 . . . . . . . . . . . . . . . . . . . . . . . . . . Locate Traps 3 | . 1 . . . 1 1 . . . . . . . . . . . . . . . . . . . . . . . . . . Hauler Manifests 2 | . . . . . 1 1 . . . . . . . . . . . . . . . . . . . . . . . . . . Registered Components 1 | . . . . . 1 . . . . . . . . . . . . . . . . . . . . . . . . . . . Proto ID Catalog 1 | . . . 1 . . . . . . . . . . . . . . . . . . . . . . . . . . . . . Fabricator Hacks 7 | . . . . . . . 1 . 1 . . . . . . . . . . 2 . . . . . . 3 . . . . . Network Status 1 | . . . . . . . . . . . . . . . . . . . . . . . . . . . 1 . . . . . Load Schematic 4 | . . . . . . . 1 . 1 . . . . . . . . . . 1 . . . . . . 1 . . . . . Build 2 | . . . . . . . . . . . . . . . . . . . . 1 . . . . . . 1 . . . . . Repair Station Hacks 27 | . 2 . . . 8 6 2 . 4 . . . . 1 . 4 . . . . . . . . . . . . . . . . Scan Component 15 | . 1 . . . 4 4 1 . 2 . . . . 1 . 2 . . . . . . . . . . . . . . . . Repair 12 | . 1 . . . 4 2 1 . 2 . . . . . . 2 . . . . . . . . . . . . . . . . Recycling Unit Hacks 5 | . 1 . . . . . 2 . . . . . . . . . . . . . . . . . 1 . 1 . . . . . Retrieve Components 5 | . 1 . . . . . 2 . . . . . . . . . . . . . . . . . 1 . 1 . . . . . Scanalyzer 5 | . . . . . . . 2 . 1 . . . . 2 . . . . . . . . . . . . . . . . . . Insert Component 1 | . . . . . . . . . . . . . . 1 . . . . . . . . . . . . . . . . . . Analyze 1 | . . . . . . . . . . . . . . 1 . . . . . . . . . . . . . . . . . . Retrieve Study 3 | . . . . . . . 2 . 1 . . . . . . . . . . . . . . . . . . . . . . . Garrison Access Hacks 4 | . . . . . . . 1 . 1 . . . . 1 . . . . . . . . . . . . 1 . . . . . Seal Access 4 | . . . . . . . 1 . 1 . . . . 1 . . . . . . . . . . . . 1 . . . . . Unauthorized Hacks 27 | . 3 . . . 5 3 7 . 4 . . . . 1 . . . . . 1 . . . . . . 3 . . . . . Terminals 16 | . 1 . . . 5 3 4 . 3 . . . . . . . . . . . . . . . . . . . . . . . Track 2 | . . . . . 1 1 . . . . . . . . . . . . . . . . . . . . . . . . . . Assimilate 3 | . . . . . . . 2 . 1 . . . . . . . . . . . . . . . . . . . . . . . Botnet 7 | . . . . . 2 1 2 . 2 . . . . . . . . . . . . . . . . . . . . . . . Disrupt 1 | . . . . . . 1 . . . . . . . . . . . . . . . . . . . . . . . . . . Operators 2 | . 1 . . . 1 . . . . . . . . . . . . . . . . . . . . . . . . . . . Skim 1 | . . . . . 1 . . . . . . . . . . . . . . . . . . . . . . . . . . . Fabricators 6 | . . . . . . . 2 . 1 . . . . . . . . . . 1 . . . . . . 2 . . . . . Prioritize 1 | . . . . . . . . . . . . . . . . . . . . . . . . . . . 1 . . . . . Liberate 1 | . . . . . . . 1 . . . . . . . . . . . . . . . . . . . . . . . . . Recompile 4 | . . . . . . . 1 . 1 . . . . . . . . . . 1 . . . . . . 1 . . . . . Repair Stations . | . . . . . . . . . . . . . . . . . . . . . . . . . . . . . . . . . Recycling Units 5 | . 2 . . . . . 1 . . . . . . 1 . . . . . . . . . . . . 1 . . . . . Tunnel 5 | . 2 . . . . . 1 . . . . . . 1 . . . . . . . . . . . . 1 . . . . . Scanalyzers . | . . . . . . . . . . . . . . . . . . . . . . . . . . . . . . . . . Garrison Access . | . . . . . . . . . . . . . . . . . . . . . . . . . . . . . . . . . Data Cores Recovered 3 | . . . . . 1 . 1 . . . . . . . . 1 . . . . . . . . . . . . . . . . Used 2 | . . . . . 1 . 1 . . . . . . . . . . . . . . . . . . . . . . . . . Hacking Detections 63 | . 8 . . 1 7 9 13 . 8 1 . . . 8 . 3 . . . 4 . . . 1 . . . . . . . . Full Trace Events 3 | . . . . . . 2 . . . 1 . . . . . . . . . . . . . . . . . . . . . . Feedback Events 2 | . . . . . . 1 . . . 1 . . . . . . . . . . . . . . . . . . . . . . Corruption 2 | . . . . . . 1 . . . 1 . . . . . . . . . . . . . . . . . . . . . . Feedback Blocked . | . . . . . . . . . . . . . . . . . . . . . . . . . . . . . . . . . Robot Schematics Acquired 7 | . . . . . . . . . . . . . . . . . . 7 . . . . . . . . . . . . . . Robots Built . | . . . . . . . . . . . . . . . . . . . . . . . . . . . . . . . . . Authchips . | . . . . . . . . . . . . . . . . . . . . . . . . . . . . . . . . . Time . | . . . . . . . . . . . . . . . . . . . . . . . . . . . . . . . . . Total Robot Build Rating . | . . . . . . . . . . . . . . . . . . . . . . . . . . . . . . . . . Part Schematics Acquired 107 | . 1 . . 1 1 . . . . . . . . 14 . 12 . 13 . 24 12 . . 12 . . 14 . . 3 . . Parts Built . | . . . . . . . . . . . . . . . . . . . . . . . . . . . . . . . . . Authchips . | . . . . . . . . . . . . . . . . . . . . . . . . . . . . . . . . . Time 208 | . . . . . . . . . . . . . . . . . . . . 69 . . . . . . 139 . . . . . Total Part Build Rating . | . . . . . . . . . . . . . . . . . . . . . . . . . . . . . . . . . Part Studies Acquired 3 | . . . . . . . 2 . 1 . . . . . . . . . . . . . . . . . . . . . . . Parts Repaired 12 | . 1 . . . 4 2 1 . 2 . . . . . . 2 . . . . . . . . . . . . . . . . Time 655 | . 26 . . . 122 82 68 . 188 . . . . . . 169 . . . . . . . . . . . . . . . . Parts Recycled . | . . . . . . . . . . . . . . . . . . . . . . . . . . . . . . . . . Recycled Matter . | . . . . . . . . . . . . . . . . . . . . . . . . . . . . . . . . . Retrieved Matter . | . . . . . . . . . . . . . . . . . . . . . . . . . . . . . . . . . Retrieved Components 3 | . . . . . . . . . . . . . . . . . . . . . . . . . 2 . 1 . . . . . Parts Scanalyzed 1 | . . . . . . . . . . . . . . 1 . . . . . . . . . . . . . . . . . . Part Schematics Acquired 1 | . . . . . . . . . . . . . . 1 . . . . . . . . . . . . . . . . . . Parts Damaged . | . . . . . . . . . . . . . . . . . . . . . . . . . . . . . . . . . Bothacking | -11 -10 -10 -10 -9 -8 -8 -7 -7 -7 -7 -7 -7 -6 -6 -6 -6 -6 -6 -5 -5 -5 -5 -5 -5 -4 -4 -4 -4 -4 -4 -3 -3 ------------ Run | Yrd Mat Min Exi Min Mat Sto Fac Was Fac Low Low Zio Pro Fac Was Fac Low Dat Pro Fac Ext Cet Arc Hub Fac Was Fac Upp Upp Zhi Pro Res Used RIF Installer . | . . . . . . . . . . . . . . . . . . . . . . . . . . . . . . . . . Robots Hacked 4 | . . . 4 . . . . . . . . . . . . . . . . . . . . . . . . . . . . . Non-combat 3 | . . . 3 . . . . . . . . . . . . . . . . . . . . . . . . . . . . . Combat 1 | . . . 1 . . . . . . . . . . . . . . . . . . . . . . . . . . . . . Robot Hacks Applied 4 | . . . 4 . . . . . . . . . . . . . . . . . . . . . . . . . . . . . parse_system 4 | . . . 4 . . . . . . . . . . . . . . . . . . . . . . . . . . . . . Relay Couplers Released . | . . . . . . . . . . . . . . . . . . . . . . . . . . . . . . . . . Fabnet Peak Effective % . | . . . . . . . . . . . . . . . . . . . . . . . . . . . . . . . . . Robots Rewired 20 | . . . . . . . . . . . . . . . . . . . . . 17 . . . . . . 3 . . . . Allies Hacked 3 | . . . . . . . . . . . . . . 1 . 1 . . . . . . . . . . . 1 . . . . Hacks Repelled . | . . . . . . . . . . . . . . . . . . . . . . . . . . . . . . . . . Allies | -11 -10 -10 -10 -9 -8 -8 -7 -7 -7 -7 -7 -7 -6 -6 -6 -6 -6 -6 -5 -5 -5 -5 -5 -5 -4 -4 -4 -4 -4 -4 -3 -3 -------- Run | Yrd Mat Min Exi Min Mat Sto Fac Was Fac Low Low Zio Pro Fac Was Fac Low Dat Pro Fac Ext Cet Arc Hub Fac Was Fac Upp Upp Zhi Pro Res Total Allies 118 | . . . . 4 . 10 1 19 . . . 8 . 1 20 3 . . . . 29 5 . 3 5 1 2 3 . . . 4 Largest Group 24 | . . . . 4 2 10 7 19 12 1 . 8 8 5 20 20 3 3 3 . 21 24 13 2 4 1 2 3 . . . 2 Highest-Rated Group 1284 | . . . . 71 32 173 125 475 366 27 . 260 260 169 736 736 210 210 210 . 860 1284 879 170 391 46 206 141 . . . 206 Highest-Rated Ally 159 | . . . . 31 16 29 29 35 35 27 . 40 40 40 46 70 70 70 70 . 159 159 159 85 103 46 103 47 . . . 103 Zionite Dispatches 11 | . . . . . . . . . . . . . . 1 . 1 . . . . 2 . . 2 2 . 1 . . . . 2 Heavy 5 | . . . . . . . . . . . . . . . . . . . . . . . . 1 1 . 1 . . . . 2 Light 3 | . . . . . . . . . . . . . . . . 1 . . . . 1 . . . 1 . . . . . . . Fire 1 | . . . . . . . . . . . . . . . . . . . . . 1 . . . . . . . . . . . Thermal Resupply 1 | . . . . . . . . . . . . . . 1 . . . . . . . . . . . . . . . . . . Offense Resupply 1 | . . . . . . . . . . . . . . . . . . . . . . . . 1 . . . . . . . . Total Orders 18 | . . . . . 2 2 1 . . . . . . 2 . . . . . . 2 6 . 1 . . . 2 . . . . STAY 8 | . . . . . 1 1 1 . . . . . . 1 . . . . . . 1 1 . 1 . . . 1 . . . . ROAM 2 | . . . . . . . . . . . . . . . . . . . . . . 2 . . . . . . . . . . FOLLOW 7 | . . . . . 1 1 . . . . . . . . . . . . . . 1 3 . . . . . 1 . . . . DROP 1 | . . . . . . . . . . . . . . 1 . . . . . . . . . . . . . . . . . . Ally Attacks 907 | . . . . 14 30 95 32 103 73 . . . 34 32 . 160 . . 30 . 69 90 59 6 39 5 4 9 . . . 23 Total Damage 22933 | . . . . 200 282 1207 273 2888 3128 . . . 608 674 . 3377 . . 463 . 1291 1924 1251 386 2499 194 403 257 . . . 1628 Kills 172 | . . . . 2 5 17 4 9 26 . . . 3 3 . 29 . . 6 . 14 13 13 1 13 . 3 1 . . . 10 Allies Corrupted 5 | . . . . . . . . . . . . . . 1 . . . . . . . . . 1 . . . 1 . . . 2 Allies Melted 2 | . . . . . . . . . . . . . 1 . . 1 . . . . . . . . . . . . . . . . Intel | -11 -10 -10 -10 -9 -8 -8 -7 -7 -7 -7 -7 -7 -6 -6 -6 -6 -6 -6 -5 -5 -5 -5 -5 -5 -4 -4 -4 -4 -4 -4 -3 -3 ------- Run | Yrd Mat Min Exi Min Mat Sto Fac Was Fac Low Low Zio Pro Fac Was Fac Low Dat Pro Fac Ext Cet Arc Hub Fac Was Fac Upp Upp Zhi Pro Res Active Infowar (turns) 33504 | 155 2197 1325 541 1305 1523 1893 2435 563 531 2153 1222 1875 1769 1311 373 1208 253 120 364 1973 1461 568 73 1560 1382 84 799 808 766 234 679 1 Optics 10515 | . . . . . . . . . . . . . . . . . . . 148 1973 1461 568 73 1560 1366 84 799 808 766 234 675 . Sensors 22730 | . . 2 . . . . 2211 563 531 2153 1222 1875 1769 1311 373 1085 253 120 364 1777 1133 567 73 1187 1198 84 778 756 766 234 345 . IFF 2 | . . . . . . . . . . . . . . . . 2 . . . . . . . . . . . . . . . . Terrain 4065 | . . . . . . . . . . . . . . . . . . . . . . . . . 1196 84 708 730 766 228 353 . Seismic 9161 | 155 2197 1323 541 1305 1523 1893 224 . . . . . . . . . . . . . . . . . . . . . . . . . Jamming 209 | . . . . . . . . . . . . . . . . 121 . . . 86 . . . . . . . . . . 1 1 Robot Analysis Total 6 | . 1 . . 1 . . . . . . . . . . . . . . . . . . . . . . . . . 4 . . Derelict Logs Recovered 13 | . . 2 . 1 . . . . . 2 1 1 1 . . . . . . . . . . . . . . 2 3 . . . Drone Launches . | . . . . . . . . . . . . . . . . . . . . . . . . . . . . . . . . . Drone Recoveries . | . . . . . . . . . . . . . . . . . . . . . . . . . . . . . . . . . Zionite Intel Received 27 | . . . . . . . . . . . . . . 4 . 9 . . . 5 1 . . 3 1 . 4 . . . . . Branch Access 1 | . . . . . . . . . . . . . . . . 1 . . . . . . . . . . . . . . . . Emergency Access 3 | . . . . . . . . . . . . . . . . 1 . . . 1 . . . . . . 1 . . . . . Guard Positions 3 | . . . . . . . . . . . . . . . . 1 . . . . . . . 1 . . 1 . . . . . Component Stockpiles 3 | . . . . . . . . . . . . . . 1 . 1 . . . . . . . . 1 . . . . . . . Component Schematics 4 | . . . . . . . . . . . . . . 1 . 1 . . . . . . . 1 . . 1 . . . . . Prototype Schematics 3 | . . . . . . . . . . . . . . . . . . . . 2 1 . . . . . . . . . . . Unaware Analyses 4 | . . . . . . . . . . . . . . . . 3 . . . . . . . 1 . . . . . . . . Trap Installations 2 | . . . . . . . . . . . . . . 1 . . . . . 1 . . . . . . . . . . . . Active Terminals 1 | . . . . . . . . . . . . . . . . 1 . . . . . . . . . . . . . . . . Active Garrisons 2 | . . . . . . . . . . . . . . 1 . . . . . . . . . . . . 1 . . . . . Depthwide Sectors/0 1 | . . . . . . . . . . . . . . . . . . . . 1 . . . . . . . . . . . . Exploration | -11 -10 -10 -10 -9 -8 -8 -7 -7 -7 -7 -7 -7 -6 -6 -6 -6 -6 -6 -5 -5 -5 -5 -5 -5 -4 -4 -4 -4 -4 -4 -3 -3 ------------- Run | Yrd Mat Min Exi Min Mat Sto Fac Was Fac Low Low Zio Pro Fac Was Fac Low Dat Pro Fac Ext Cet Arc Hub Fac Was Fac Upp Upp Zhi Pro Res Turns Passed 36129 | 225 2197 1343 541 1305 1746 1981 2848 776 933 2227 1224 1905 1769 1571 376 1236 253 120 432 1973 1461 568 73 1578 1382 84 799 808 766 234 972 423 Spaces Moved 19937 | 47 963 673 325 578 794 942 1419 403 531 1323 735 1191 1105 826 276 728 209 96 261 972 681 289 42 670 802 68 557 521 660 172 718 360 Core 89 | 4 . . . . . . . . . . . . . . . . . . . . . . . . . . . . . . 9 76 Treads 12551 | 43 963 673 325 578 794 942 1419 403 531 1323 735 1191 1105 494 . . . . . . . 145 42 670 171 . . . . . . 4 Legs 6021 | . . . . . . . . . . . . . . . . 538 209 96 261 972 681 144 . . 631 68 557 521 660 172 326 185 Wheels 798 | . . . . . . . . . . . . . . 332 276 190 . . . . . . . . . . . . . . . . Hover . | . . . . . . . . . . . . . . . . . . . . . . . . . . . . . . . . . Flight 478 | . . . . . . . . . . . . . . . . . . . . . . . . . . . . . . . 383 95 Fastest Speed 45 | 50 160 160 160 160 156 156 152 152 155 155 155 155 155 116 116 116 120 120 120 120 120 120 160 160 108 108 106 110 110 110 45 45 Average Speed 142 | 150 160 160 160 213 158 156 155 155 155 155 155 155 156 151 116 119 120 120 124 120 130 142 160 160 120 110 109 110 110 110 90 85 Slowest Speed 350 | 160 160 160 160 240 240 235 156 160 155 155 155 155 158 175 116 190 120 120 190 120 190 240 160 160 240 113 194 110 110 110 285 350 Overloaded Moves . | . . . . . . . . . . . . . . . . . . . . . . . . . . . . . . . . . Propulsion Burnouts . | . . . . . . . . . . . . . . . . . . . . . . . . . . . . . . . . . Robots Hopped 1 | . . . . . . . . . . . . . . . . . . . . . . . . . . . . . . . 1 . Potential Cave-ins 12 | . . . . . . . . . . . . . . 3 . . . . . 2 . . . . . . . . . . 7 . Cave-ins Triggered . | . . . . . . . . . . . . . . . . . . . . . . . . . . . . . . . . . Teleports 1 | . . . . . . . . . . . . . . . . . . . . . . . . . . . . . . . 1 . Exploration Rate (%) 63 | 4 99 98 70 99 51 92 39 88 15 95 83 89 87 30 95 31 33 68 51 36 86 80 75 68 28 70 24 77 86 63 65 13 Regions Visited 32 Branch Regions 19 Pre-discovered Areas 24 | . 2 1 1 . . 1 1 . . . 1 . . 1 . . . 1 . 9 . . . . . . 1 1 1 3 . . Known Exits Taken 20 | . . . . . 1 1 . . 1 1 1 1 1 . . 1 1 1 1 1 1 1 1 1 . . 1 1 1 1 . . Unknown Exits Taken 6 | 1 1 1 1 1 . . . . . . . . . . . . . . . . . . . . . . . . . . 1 . Scrap Searched 34 | . . 2 . 2 . . . . . 7 3 5 1 . . . . . 2 . . . . . . . . 5 6 . 1 . Spaces Dug 269 | . 5 4 . . 7 8 20 1 3 3 5 . . 20 . 31 . . 15 37 10 . . 17 21 . 27 9 8 . 17 1 Terrain Destroyed 1127 | . 6 27 . . 23 52 66 9 8 21 9 . 11 83 . 50 1 . 30 107 16 . . 271 62 . 98 24 14 1 134 4 Melee 12 | . . . . . . 1 10 . . . . . . 1 . . . . . . . . . . . . . . . . . . Projectile 662 | . 6 13 . . 23 51 40 9 8 21 9 . . 46 . 50 1 . 23 86 16 . . 94 46 . 39 24 14 1 38 4 AOE 453 | . . 14 . . . . 16 . . . . . 11 36 . . . . 7 21 . . . 177 16 . 59 . . . 96 . Terrain Rammed . | . . . . . . . . . . . . . . . . . . . . . . . . . . . . . . . . . Walls Destroyed . | . . . . . . . . . . . . . . . . . . . . . . . . . . . . . . . . . Machines Disabled . | . . . . . . . . . . . . . . . . . . . . . . . . . . . . . . . . . Actions | -11 -10 -10 -10 -9 -8 -8 -7 -7 -7 -7 -7 -7 -6 -6 -6 -6 -6 -6 -5 -5 -5 -5 -5 -5 -4 -4 -4 -4 -4 -4 -3 -3 --------- Run | Yrd Mat Min Exi Min Mat Sto Fac Was Fac Low Low Zio Pro Fac Was Fac Low Dat Pro Fac Ext Cet Arc Hub Fac Was Fac Upp Upp Zhi Pro Res Total 25624 | 156 1494 815 340 628 1154 1318 1799 505 621 1440 810 1248 1135 1047 329 1009 211 101 337 1619 1198 455 48 939 1074 76 686 708 684 207 984 449 Wait 3135 | 74 411 60 5 14 221 251 142 63 48 64 62 41 21 82 38 169 3 . 40 518 167 117 7 65 112 9 58 104 12 7 124 26 Move 19906 | 46 962 672 324 577 793 941 1419 402 530 1322 734 1190 1104 826 275 727 208 95 260 971 680 288 41 669 802 67 556 520 659 171 715 360 Hop 1 | . . . . . . . . . . . . . . . . . . . . . . . . . . . . . . . 1 . Pick Up 202 | 5 20 2 1 11 14 10 22 3 7 3 1 1 . 12 2 12 . . 4 6 10 8 . 9 15 . 7 4 . 2 9 2 Fast Attach 108 | 7 . 1 . . 15 2 5 1 1 1 . 3 . 6 . 5 . 3 . 1 2 7 . 9 3 . 4 . . 5 8 19 Attach 84 | . . 5 . . 4 . 7 . 1 3 . . . 9 . 1 . . . 5 4 1 . 6 10 . 1 1 . 3 19 4 Detach 26 | . . 1 . . 1 . . . . 1 . . . 2 . 1 . . . 1 . 5 . . . . . . . 2 11 1 Swap 417 | 2 11 7 3 5 18 27 37 10 11 16 3 8 5 28 8 22 . . 15 27 28 7 . 17 49 . 15 15 8 5 9 1 Drop 232 | 1 12 1 . 7 19 14 25 6 10 5 1 5 1 11 2 12 . 3 4 6 15 21 . 10 13 . 6 3 . 5 7 7 Fire 1094 | 21 67 62 3 12 65 55 120 20 10 24 8 . 4 66 . 58 . . 13 84 34 1 . 142 68 . 37 19 5 7 81 8 Melee 31 | . . . 4 . . 14 12 . . . . . . 1 . . . . . . . . . . . . . . . . . . Ram 13 | . . . . . . . . . . . . . . 1 . 1 . . . . . . . . . . . . . . . 11 Kick 11 | . . . . . . . . . . . . . . . . 1 . . . . 5 . . . 2 . 2 . . . . 1 Crush 63 | . 11 4 . 2 4 4 10 . 3 1 . . . 3 . . . . . . . . . 12 . . . . . . . 9 Escape Stasis 10 | . . . . . . . . . . . . . . . . . . . . . 10 . . . . . . . . . . . Rewire 291 | . . . . . . . . . . . 1 . . . 4 . . . 1 . 243 . . . . . . 42 . . . . Trap . | . . . . . . . . . . . . . . . . . . . . . . . . . . . . . . . . . Miscellaneous . | . . . . . . . . . . . . . . . . . . . . . . . . . . . . . . . . . Route ------- -11/Scrapyard -10/Materials (discovered 4 exits: [*Mat x3] / [*Min]) -10/Mines (discovered 3 exits: [*Mat x2] / *Exi) -10/Exiles -9/Mines (discovered 2 exits: *Mat x2) -8/Materials (discovered 4 exits: *Fac x3 / *Sto) -8/Storage -7/Factory (discovered 6 exits: *Fac x4 / *Low x2) -7/Waste -7/Factory (discovered 4 exits: *Fac x2 / *Low x2) -7/Lower Caves -7/Lower Caves (discovered 2 exits: *Fac / *Zio) -7/Zion -6/Proximity Caves -6/Factory -6/Waste -6/Factory (discovered 3 exits: *Fac / *Low x2) -6/Lower Caves -6/Data Miner -5/Proximity Caves -5/Factory (discovered 2 exits: *Fac / *Ext) -5/Extension (discovered 2 exits: *Fac / *Cet) -5/Cetus (discovered 2 exits: *Fac / *Arc) -5/Archives (discovered 2 exits: *Hub x2) -5/Hub_04(d) (discovered 2 exits: *Fac x2) -4/Factory -4/Waste -4/Factory (discovered 2 exits: *Upp x2) -4/Upper Caves -4/Upper Caves (discovered 2 exits: *Res / *Zhi) -4/Zhirov -3/Proximity Caves -3/Research (discovered 3 exits: Res / *Tes x2) History --------- Turn | Location | Event 8 | -11/Scrapyard | Discovered new exit (range 15) 226 | -11/Scrapyard | Entered Materials 314 | -10/Materials | Build established: Mutant 843 | -10/Materials | Discovered new exit (range 9) 1039 | -10/Materials | Discovered new exit (range 8) 1212 | -10/Materials | Repaired Hcp. Storage Unit 1627 | -10/Materials | Discovered new exit (range 13) 2042 | -10/Materials | Discovered new exit (range 14) 2423 | -10/Materials | Entered Mines 2502 | -10/Mines | Deemed a non-threat by the Exiles lab entrance 2554 | -10/Mines | Learned 8 Materials zone layouts 2721 | -10/Mines | Discovered new exit (range 5) 2750 | -10/Mines | Learned Materials security intel 2756 | -10/Mines | Assembled infested the area 3000 | -10/Mines | Discovered new exit (range 5) 3133 | -10/Mines | Lost 3 parts (1p2n) 3439 | -10/Mines | Found a damaged Exp. Sensor Array with a note attached 3442 | -10/Mines | Found Prototype Device 3442 | -10/Mines | Identified Exp. Sensor Array 3554 | -10/Mines | Discovered new exit (range 8) 3639 | -10/Mines | Learned location of Storage (-8) 3766 | -10/Mines | Entered Exiles 3814 | -10/Exiles | Met 8R-AWN 3839 | -10/Exiles | Met EX-HEX 3903 | -10/Exiles | Met EX-DEC 3959 | -10/Exiles | Learned location of Zion (-7) 3993 | -10/Exiles | Met EX-BIN 4052 | -10/Exiles | Aligned with FarCom system 4053 | -10/Exiles | Given EX-Vault access code 4093 | -10/Exiles | Opened EX-Vault 4132 | -10/Exiles | Warned to stay clear of 0b10 Research branches 4271 | -10/Exiles | Attacked by the Exiles 4286 | -10/Exiles | Discovered new exit (range 10) 4307 | -10/Exiles | Entered Mines 4371 | -9/Mines | A weapon hastily lodged in a ceiling crevice suddenly fell to the ground 4476 | -9/Mines | Discovered new exit (range 8) 4489 | -9/Mines | Assisted by bots powering up and referring to "LRC-V3" 4510 | -9/Mines | Discovered new exit (range 6) 4513 | -9/Mines | Received a Mining Laser from a helpful Derelict 4607 | -9/Mines | Joined a pair of Derelicts in attacking an 0b10 outpost 4742 | -9/Mines | Learned 2 Materials zone layouts 5612 | -9/Mines | Entered Materials 5612 | -8/Materials | Accompanied by 2 allies 5612 | -8/Materials | Evolved 4 slots: Propulsion x2, Utility x1, Weapon x1 5613 | -8/Materials | Identified exit to Factory 5613 | -8/Materials | Identified exit to Storage 5935 | -8/Materials | Repaired Autogun 6067 | -8/Materials | Build established: Scavenger-Tank 6389 | -8/Materials | Repaired Autogun 6422 | -8/Materials | Repaired Hvy. Assault Rifle 6449 | -8/Materials | Repaired Lgt. Treads 7358 | -8/Materials | Entered Storage 8165 | -8/Storage | Learned location of Armory (-3) 8207 | -8/Storage | Assisted by bots powering up and referring to "LRC-V3" 8320 | -8/Storage | Discovered exit to Factory (range 8) 8540 | -8/Storage | Build established: Commander-Tank 8600 | -8/Storage | Repaired Adv. Assault Cannon 8639 | -8/Storage | Repaired Hrd. Medium Armor Plating 9089 | -8/Storage | Build established: Commander-Mutant 9339 | -8/Storage | Entered Factory 9339 | -7/Factory | Accompanied by 7 allies 9339 | -7/Factory | Evolved 2 slots: Utility x2 9433 | -7/Factory | Repaired Broken Exp. Sensor Array? 9474 | -7/Factory | Build established: Commander-Tank 9719 | -7/Factory | Discovered new exit (range 16) 9767 | -7/Factory | Identified exit to Factory 9817 | -7/Factory | Lost 4 allies 10056 | -7/Factory | Build established: Skirmisher 10908 | -7/Factory | Discovered new exit (range 15) 10940 | -7/Factory | Identified exit to Lower Caves 11390 | -7/Factory | Build established: Hacker-Mutant 11739 | -7/Factory | First assault squad dispatched 12187 | -7/Factory | Sucked down chute 12187 | -7/Factory | Entered Waste 12227 | -7/Waste | Spotted C-40 Crusher 12235 | -7/Waste | Build established: Hacker-Skirmisher 12249 | -7/Waste | Destroyed C-40 Crusher 12254 | -7/Waste | Spotted C-40 Crusher 12311 | -7/Waste | Warlord forces began an assault 12324 | -7/Waste | Spotted C-40 Crusher 12329 | -7/Waste | Allies destroyed C-40 Crusher 12332 | -7/Waste | Spotted C-40 Crusher 12333 | -7/Waste | Allies destroyed C-40 Crusher 12340 | -7/Waste | Spotted C-40 Crusher 12343 | -7/Waste | Allies destroyed C-40 Crusher 12361 | -7/Waste | Allies destroyed C-40 Crusher 12377 | -7/Waste | Spotted C-40 Crusher 12390 | -7/Waste | Allies destroyed C-40 Crusher 12421 | -7/Waste | Lost 7 allies 12598 | -7/Waste | Discovered new exit (range 13) 12916 | -7/Waste | Identified exit to Factory 12963 | -7/Waste | Entered Factory 12963 | -7/Factory | Accompanied by 12 allies 13132 | -7/Factory | Repaired Ion Burst Cannon? 13252 | -7/Factory | Lost 3 allies 13380 | -7/Factory | Discovered exit to Lower Caves (range 15) 13417 | -7/Factory | Discovered exit to Factory (range 15) 13541 | -7/Factory | Discovered exit to Factory (range 16) 13763 | -7/Factory | First assault squad dispatched 13779 | -7/Factory | Repaired Exp. Sensor Array 13806 | -7/Factory | Build established: Hacker-Tank 13896 | -7/Factory | Entered Lower Caves 13896 | -7/Lower Caves | Accompanied by 1 ally 13921 | -7/Lower Caves | Lost 5 allies 14213 | -7/Lower Caves | Build established: Skirmisher 14288 | -7/Lower Caves | Learned Factory emergency access door positions 14947 | -7/Lower Caves | Identified exit to Lower Caves 15124 | -7/Lower Caves | Build established: Tank 15987 | -7/Lower Caves | Learned Research trap positions 15987 | -7/Lower Caves | Learned Factory trap positions 15987 | -7/Lower Caves | Learned location of 2 exits from Upper Caves 16123 | -7/Lower Caves | Entered another Lower Caves area 16272 | -7/Lower Caves | Discovered exit to Factory (range 8) 16591 | -7/Lower Caves | Encountered a Warlord checkpoint 17294 | -7/Lower Caves | Discovered new exit (range 5) 17335 | -7/Lower Caves | Identified exit to Zion 17347 | -7/Lower Caves | Entered Zion 17406 | -7/Zion | Discovered new exit (range 16) 17433 | -7/Zion | System corruption cleaned by Quarantine Array 18262 | -7/Zion | Learned 4 Factory zone layouts 18797 | -7/Zion | Met Imprinter 18825 | -7/Zion | Imprinted 18828 | -7/Zion | Declared Zion's savior 19107 | -7/Zion | Gained Derelict followers 19222 | -7/Zion | Identified exit to Proximity Caves 19252 | -7/Zion | Entered Proximity Caves 19252 | -6/Proximity Caves | Accompanied by 8 allies 19367 | -6/Proximity Caves | Spotter reported a threat 20071 | -6/Proximity Caves | Lost 3 allies 21021 | -6/Proximity Caves | Entered Factory 21021 | -6/Factory | Accompanied by 5 allies 21021 | -6/Factory | Evolved 2 slots: Propulsion x1, Utility x1 21023 | -6/Factory | Loaded intel: 101 trap records 21200 | -6/Factory | Retrieved Zion intel report: Trap Installations 21333 | -6/Factory | Discovered new exit (range 10) 21430 | -6/Factory | Retrieved Zion intel report: Component Stockpiles 21792 | -6/Factory | Retrieved Zion intel report: Active Garrisons 21979 | -6/Factory | Cargo convoy interrupted 22008 | -6/Factory | Garrison activated, responded to threat 22020 | -6/Factory | System corruption reached 10% 22050 | -6/Factory | Destroyed 11 combat bots 22060 | -6/Factory | Lost 10 parts (1p4n2u3w) 22153 | -6/Factory | Retrieved Zion intel report: Component Schematics 22154 | -6/Factory | Zion Thermal Resupply teleported in 22515 | -6/Factory | Terminal network hard line cut 22592 | -6/Factory | Sucked down chute 22592 | -6/Factory | Entered Waste 22593 | -6/Waste | Joined by Warlord forces that had cleared the area 22798 | -6/Waste | Discovered new exit (range 11) 22935 | -6/Waste | Build established: Scavenger-Skirmisher 22938 | -6/Waste | Identified exit to Factory 22968 | -6/Waste | Entered Factory 22968 | -6/Factory | Accompanied by 20 allies 23003 | -6/Factory | Retrieved Zion intel report: Component Stockpiles 23173 | -6/Factory | Lost 4 allies 23214 | -6/Factory | Retrieved Zion intel report: Emergency Access 23361 | -6/Factory | Retrieved Zion intel report: Component Schematics 23443 | -6/Factory | Retrieved Zion intel report: Guard Positions 23454 | -6/Factory | Lost 3 allies 23517 | -6/Factory | Retrieved Zion intel report: Unaware Analyses 23529 | -6/Factory | Build established: Skirmisher 23643 | -6/Factory | Lost 8 allies 23805 | -6/Factory | Retrieved Zion intel report: Branch Access 23805 | -6/Factory | Identified exit to Lower Caves 23840 | -6/Factory | Discovered new exit (range 6) 23847 | -6/Factory | Identified exit to Factory 23960 | -6/Factory | Repaired Cld. Proton Cannon 24018 | -6/Factory | First assault squad dispatched 24033 | -6/Factory | Repaired Broken Arm. Leg 24071 | -6/Factory | Retrieved Zion intel report: Active Terminals 24072 | -6/Factory | Zion Light squad teleported in 24122 | -6/Factory | Retrieved Zion intel report: Unaware Analyses 24180 | -6/Factory | Retrieved Zion intel report: Unaware Analyses 24204 | -6/Factory | Entered Lower Caves 24204 | -6/Lower Caves | Accompanied by 3 allies 24415 | -6/Lower Caves | Encountered a Warlord checkpoint 24432 | -6/Lower Caves | A Derelict revealed a hidden shortcut to meet someone special 24440 | -6/Lower Caves | Identified exit to Data Miner 24457 | -6/Lower Caves | Entered Data Miner 24457 | -6/Data Miner | Accompanied by 3 allies 24459 | -6/Data Miner | Discovered new exit (range 6) 24482 | -6/Data Miner | Met Data Miner 24512 | -6/Data Miner | Learned location of Section 7 (-2) 24512 | -6/Data Miner | Acquired the access code to Warlord's prototype stash 24530 | -6/Data Miner | Received God Mode back door access code from Data Miner 24576 | -6/Data Miner | Identified exit to Proximity Caves 24577 | -6/Data Miner | Entered Proximity Caves 24577 | -5/Proximity Caves | Accompanied by 3 allies 24835 | -5/Proximity Caves | Found Prototype Protection 24835 | -5/Proximity Caves | Identified Zio. Weapon Casing 24978 | -5/Proximity Caves | Discovered exit to Factory (range 19) 25009 | -5/Proximity Caves | Entered Factory 25009 | -5/Factory | Evolved 2 slots: Power x1, Propulsion x1 25343 | -5/Factory | Retrieved Zion intel report: Trap Installations 25587 | -5/Factory | Retrieved Zion intel report: Prototype Schematics 25664 | -5/Factory | Discovered new exit (range 18) 25687 | -5/Factory | Identified exit to Factory 25778 | -5/Factory | Retrieved Zion intel report: Emergency Access 25840 | -5/Factory | Retrieved Zion intel report: Depthwide Sectors/-5 25931 | -5/Factory | Retrieved Zion intel report: Prototype Schematics 25958 | -5/Factory | Incoming investigation squad redirected 26212 | -5/Factory | Terminal network hard line cut 26466 | -5/Factory | Discovered new exit (range 5) 26471 | -5/Factory | Identified exit to Extension 26982 | -5/Factory | Entered Extension 27109 | -5/Extension | Rescued A7 27180 | -5/Extension | Rescued a captive Derelict 27180 | -5/Extension | Rescued a captive Derelict 27272 | -5/Extension | Retrieved Zion intel report: Prototype Schematics 27273 | -5/Extension | Zion Fire squad teleported in 27284 | -5/Extension | Rescued a captive Derelict 27285 | -5/Extension | Rescued a captive Derelict 27957 | -5/Extension | Spotted B-75 Beast 27966 | -5/Extension | Spotted B-75 Beast 27981 | -5/Extension | Allies destroyed B-75 Beast 27997 | -5/Extension | Destroyed B-75 Beast 28041 | -5/Extension | Zion Light squad teleported in 28050 | -5/Extension | Rescued a captive Derelict 28229 | -5/Extension | Terminal network hard line cut 28254 | -5/Extension | Found Zio. Weapon Casing 28295 | -5/Extension | Build established: Commander-Skirmisher 28358 | -5/Extension | Discovered exit to Factory (range 10) 28360 | -5/Extension | Discovered new exit (range 6) 28378 | -5/Extension | Identified exit to Cetus 28443 | -5/Extension | Entered Cetus 28443 | -5/Cetus | Accompanied by 20 allies (A7) 28448 | -5/Cetus | Acquired a Cetus Manufacturing Module code from A7 28451 | -5/Cetus | Spotted Cetus Guard 28452 | -5/Cetus | Spotted Cetus Guard 28452 | -5/Cetus | Allies destroyed Cetus Guard 28453 | -5/Cetus | Spotted Cetus Guard 28454 | -5/Cetus | Allies destroyed Cetus Guard 28454 | -5/Cetus | Spotted Cetus Guard 28454 | -5/Cetus | Allies destroyed Cetus Guard 28462 | -5/Cetus | Allies destroyed Cetus Guard 28544 | -5/Cetus | Started Cetus Manufacturing Module 28569 | -5/Cetus | Manufactured an Enhanced Grunt 28576 | -5/Cetus | Escorted A7 to Cetus Mainframe 28594 | -5/Cetus | Manufactured an Enhanced Grunt 28603 | -5/Cetus | Discovered new exit (range 21) 28619 | -5/Cetus | Manufactured an Enhanced Grunt 28644 | -5/Cetus | Manufactured an Enhanced Grunt 28669 | -5/Cetus | Manufactured an Enhanced Grunt 28669 | -5/Cetus | Spotted Cetus Guard 28669 | -5/Cetus | Spotted Cetus Guard 28669 | -5/Cetus | Spotted Cetus Guard 28673 | -5/Cetus | Spotted Cetus Guard 28691 | -5/Cetus | Allies destroyed Cetus Guard 28692 | -5/Cetus | Allies destroyed Cetus Guard 28692 | -5/Cetus | Discovered exit to Factory (range 21) 28695 | -5/Cetus | Allies destroyed Cetus Guard 28698 | -5/Cetus | Allies destroyed Cetus Guard 28708 | -5/Cetus | Scared off Revision 17 28732 | -5/Cetus | Lost 9 allies 28762 | -5/Cetus | System corruption reached 10% 28979 | -5/Cetus | Identified exit to Archives 29011 | -5/Cetus | Entered Archives 29011 | -5/Archives | Accompanied by 13 allies (A7) 29016 | -5/Archives | Received a hacking code to weaken MAIN.C 29031 | -5/Archives | Met Zhirov 29031 | -5/Archives | Discovered new exit (range 22) 29037 | -5/Archives | Reinforcements dispatched to Archives 29037 | -5/Archives | Discovered new exit (range 22) 29051 | -5/Archives | Read partially decrypted archive contents 29075 | -5/Archives | Identified exit to Hub_04(d) 29082 | -5/Archives | Reinforcements dispatched to Archives 29084 | -5/Archives | Entered Hub_04(d) 29104 | -5/Hub_04(d) | Lost 4 allies 29189 | -5/Hub_04(d) | Retrieved Zion intel report: Component Schematics 29269 | -5/Hub_04(d) | Discovered exit to Factory (range 9) 29413 | -5/Hub_04(d) | Retrieved Zion intel report: Guard Positions 29414 | -5/Hub_04(d) | Zion Heavy squad teleported in 29444 | -5/Hub_04(d) | Found Zio. Weapon Casing 29650 | -5/Hub_04(d) | Retrieved Zion intel report: Unaware Analyses 29651 | -5/Hub_04(d) | Zion Offense Resupply teleported in 29692 | -5/Hub_04(d) | Build established: Scavenger-Tank 29805 | -5/Hub_04(d) | Network Hub disabled 29910 | -5/Hub_04(d) | Spotted Lightning 29932 | -5/Hub_04(d) | Spotted Lightning 29937 | -5/Hub_04(d) | Spotted Lightning 29944 | -5/Hub_04(d) | System corruption reached 30% 29982 | -5/Hub_04(d) | Destroyed Lightning 30037 | -5/Hub_04(d) | Destroyed Lightning 30058 | -5/Hub_04(d) | Found Prototype Device 30058 | -5/Hub_04(d) | Identified Exp. EM Shield 30064 | -5/Hub_04(d) | Found Prototype Device 30064 | -5/Hub_04(d) | Identified Exp. Phase Shifter 30090 | -5/Hub_04(d) | Found Exp. Targeting Computer 30104 | -5/Hub_04(d) | Found Prototype Energy Cannon 30132 | -5/Hub_04(d) | Network Hub disabled 30301 | -5/Hub_04(d) | Terminal network hard line cut 30442 | -5/Hub_04(d) | Garrison activated, responded to threat 30511 | -5/Hub_04(d) | Found Mni. Smartbomb Launcher 30553 | -5/Hub_04(d) | Spotted Lightning 30555 | -5/Hub_04(d) | Spotted Lightning 30584 | -5/Hub_04(d) | First assault squad dispatched 30655 | -5/Hub_04(d) | Discovered exit to Factory (range 5) 30662 | -5/Hub_04(d) | Entered Factory 30662 | -4/Factory | Evolved 2 slots: Utility x2 30954 | -4/Factory | Build established: Scavenger-Skirmisher 30994 | -4/Factory | Retrieved Zion intel report: Component Stockpiles 30995 | -4/Factory | Zion Heavy squad teleported in 31042 | -4/Factory | Found Zio. Weapon Casing 31085 | -4/Factory | Zion Light squad teleported in 31162 | -4/Factory | First assault squad dispatched 31211 | -4/Factory | Found Zio. Weapon Casing 31216 | -4/Factory | Found Zio. Weapon Casing 31295 | -4/Factory | Spotted B-86 Titan 31326 | -4/Factory | Allies destroyed B-86 Titan 31794 | -4/Factory | Build established: Messiah-Skirmisher 32031 | -4/Factory | Terminal network hard line cut 32044 | -4/Factory | Manually triggered Chute Trap 32044 | -4/Factory | Sucked down chute 32044 | -4/Factory | Entered Waste 32045 | -4/Waste | Met a frightened Derelict 32051 | -4/Waste | Spotted C-40 Crusher 32056 | -4/Waste | Spotted C-40 Crusher 32059 | -4/Waste | EMP discharged 32059 | -4/Waste | System corruption reached 10% 32088 | -4/Waste | Spotted C-40 Crusher 32096 | -4/Waste | Crushed by Compactor (1 part destroyed, 1 dropped) 32110 | -4/Waste | Discovered new exit (range 19) 32115 | -4/Waste | Spotted C-40 Crusher 32116 | -4/Waste | Spotted C-40 Crusher 32127 | -4/Waste | Identified exit to Factory 32128 | -4/Waste | Entered Factory 32206 | -4/Factory | Retrieved Zion intel report: Active Garrisons 32207 | -4/Factory | Zion Heavy squad teleported in 32208 | -4/Factory | Found Quantum Capacitor 32311 | -4/Factory | Incoming investigation squad redirected 32354 | -4/Factory | Found Zio. Weapon Casing 32406 | -4/Factory | Discovered new exit (range 6) 32411 | -4/Factory | Identified exit to Upper Caves 32436 | -4/Factory | Retrieved Zion intel report: Emergency Access 32572 | -4/Factory | Retrieved Zion intel report: Guard Positions 32699 | -4/Factory | Discovered exit to Upper Caves (range 24) 32764 | -4/Factory | Retrieved Zion intel report: Component Schematics 32927 | -4/Factory | Entered Upper Caves 32928 | -4/Upper Caves | Identified exit to Upper Caves 33111 | -4/Upper Caves | Attacked by a delusional Derelict stockpiling Unaware 33371 | -4/Upper Caves | Lost 3 allies 33645 | -4/Upper Caves | Encountered a Warlord checkpoint 33735 | -4/Upper Caves | Entered another Upper Caves area 33736 | -4/Upper Caves | Identified exit to Zhirov 33737 | -4/Upper Caves | Discovered new exit (range 17) 34014 | -4/Upper Caves | Learned 8 Research zone layouts 34501 | -4/Upper Caves | Entered Zhirov 34503 | -4/Zhirov | Discovered new exit (range 3) 34547 | -4/Zhirov | Learned location of Quarantine (-2) 34547 | -4/Zhirov | Learned location of Testing (-3) 34547 | -4/Zhirov | Learned location of Command (-1) 34583 | -4/Zhirov | Found Alien Artifact 34583 | -4/Zhirov | Identified Integrated Dissipator 34583 | -4/Zhirov | Installed Integrated Dissipator, increased core heat dissipation (+20) 34619 | -4/Zhirov | Identified EMDS 34669 | -4/Zhirov | Found Alien Artifact 34730 | -4/Zhirov | Identified exit to Proximity Caves 34731 | -4/Zhirov | Cloak Generator disabled 34735 | -4/Zhirov | Entered Proximity Caves 34737 | -3/Proximity Caves | Spotter reported a threat 34738 | -3/Proximity Caves | Spotter reported a threat 34743 | -3/Proximity Caves | Attracted the attention of an 0b10 checkpoint 35078 | -3/Proximity Caves | Attracted the attention of an 0b10 outpost 35122 | -3/Proximity Caves | Lost 8 parts (1p4n2u1w) 35161 | -3/Proximity Caves | Identified Transdimensional Reconstructor 35161 | -3/Proximity Caves | Warped through subspace 35339 | -3/Proximity Caves | Build established: Messiah-Mutant 35410 | -3/Proximity Caves | Released all parts (6) 35422 | -3/Proximity Caves | Core integrity fell below 50% 35434 | -3/Proximity Caves | Lost 4 parts (1p3n) 35688 | -3/Proximity Caves | Build established: Mutant 35705 | -3/Proximity Caves | Discovered new exit (range 5) 35707 | -3/Proximity Caves | Entered Research 35707 | -3/Research | Evolved 2 slots: Propulsion x1, Utility x1 35708 | -3/Research | Identified exit to Testing 35709 | -3/Research | Identified exit to Research 35710 | -3/Research | Loaded intel: 118 trap records 35762 | -3/Research | Zion Heavy squad teleported in 35993 | -3/Research | Zion Heavy squad teleported in 35997 | -3/Research | Lost 3 parts (2p1n) 36005 | -3/Research | Found Zio. Weapon Casing 36020 | -3/Research | System corruption reached 10% 36021 | -3/Research | Found Prototype Protection 36021 | -3/Research | Identified Zio. Heavy Carapace 36029 | -3/Research | Found Zio. Heavy Carapace 36077 | -3/Research | Released all parts (8) 36099 | -3/Research | Core integrity fell below 50% 36125 | -3/Research | Core integrity fell below 20% 36130 | -3/Research | Destroyed by H-77 Assassin with High-powered Shotgun Last Messages --------------- 36111_ Slammed into H-77 Assassin. 36114_ Slug penetrates Wall. 36115_ Slammed into H-77 Assassin. 36117_ Slug penetrates Wall. 36117_ Penetrated by Slug. 36117_ Slug penetrates P-80 Master. 36117_ P-80 Master destroyed. 36117_ Arm. Heavy Treads destroyed. 36118_ Slammed into H-77 Assassin. 36121_ Slug penetrates Wall. 36121_ Penetrated by Slug. 36121_ Slug penetrates X-77 Beamer. 36121_ Slammed into H-77 Assassin. 36124_ Rnf. Fission Core destroyed. 36125_ Slammed into H-77 Assassin. 36127_ 8FA3X2QLV1NXQT%EFYGCFQ,OCFMH 5UJ 36127_ Slammed into H-77 Assassin. 36127_ Penetrated by Slug. 36128_ Slammed into H-77 Assassin. 36130_ Slug penetrates Wall. Map ----- +----------------------------------------------------+ | | | | | | | | | | | | | | | | | | | | | | | | | | | | | | | | | | | | | | | | | | | ????????????????#######??????????????????????????? | | ????????????????# #?????????????#######??????? | | ????????????????# #?????????????# #??????? | | ????????######### ###############[*! #??????? | | ????????? # ##h@ [!=x%[*[! #??????? | | ???????????# # ## ###########!=!!! #??????? | | ???????????# ##+##### #?????????## #??????? | | ??#????????# #??????????#######??????? | | ###+###????# ####################????????????????? | | ? ^ ?### ###??####??# ##########???????? | | ? ^ ^ # ####T #### ????????? | | ?? """ # ! *= #?????????? | | ??^ """ "! %* !%| > #?????????? | | ?? """ #%* % [= #?????????? | | ? ^ ^ #|* !#######+## #?????????? | | ? ?###!###?# # #######??????????? | | ! ???## ##??# ### ###????????????????? | | ##+###???#"# #???# #?# #??????????????????? | | ???????? #???# #?# #??????????????????? | | ?????? #???# #?# ##########?????????? | | ????? #???# #?# ## #?????????? | | ??? #???########?# ## ] #?????????? | | ??+###### #??########### ## #?????????? | | ????????# #??# # ## #?????????? | | ????????# #??# # ## #?????????? | | ## #????????????# + #?????????? | | ## #????????????# # #?????????? | | ## ????????????# # #?????????? | | """ ## #????????????+ + #?????????? | +----------------------------------------------------+ Best States ------------- Heat Dissipation 94 Coolant Potential 130 Energy Generation 55 Energy Capacity 800 Matter Stores 300 Matter Capacity 300 Sight Range 22 Robot Scan Range 20 Terrain Scan Range 24 Terrain Scan Density 210 Jamming Range 16 Armor Coverage 1200 Resistance: KI 30 Resistance: EM 75 Weapon Shielding 100 Weapon Cycling 20 Evasion (%) 70 Targeting Accuracy 12 Core Analysis 6 Recoil Reduction 6 Kinecelleration 40 Offensive Hacking 20 Authchip Count 4 Item Schematics ----------------- Hcp. Storage Unit | -10/Materials | Hacked Lgt. Treads | -9/Mines | Hacked Seismic Detector | -8/Materials | Hacked Dispersion Rifle | -6/Factory | Scanalyzed Weapon Cycler | -6/Factory | Z-intel Imp. Deuterium Engine | -6/Factory | Z-intel EM Shield | -6/Factory | Z-intel Med. Storage Unit | -6/Factory | Z-intel Arm. Huge Wheel | -6/Factory | Z-intel Hvy. Armor Plating | -6/Factory | Z-intel Imp. Salvage Targeting Computer | -6/Factory | Z-intel Cmb. Airjet | -6/Factory | Z-intel Adv. Targeting Computer | -6/Factory | Z-intel Force Field | -6/Factory | Z-intel Xenon Bombardment Thruster | -6/Factory | Z-intel Adv. Visual Processing Unit | -6/Factory | Z-intel Recoil Stabilizer | -6/Factory | Z-intel Field Laser | -6/Factory | Z-intel Gravmag Array | -6/Factory | Z-intel Com. Battery | -6/Factory | Z-intel Adv. ECM Suite | -6/Factory | Z-intel Mic. Nuclear Core | -6/Factory | Z-intel Phase Shifter | -6/Factory | Z-intel Hvy. Machine Gun | -6/Factory | Z-intel Adv. Signal Interpreter | -6/Factory | Z-intel Coil Gun | -6/Factory | Z-intel Spear | -6/Factory | Z-intel Magnetic Acceleration Cannon | -6/Factory | Z-intel Adv. Weight Redist. System | -6/Factory | Z-intel Combat Drone Bay | -6/Data Miner | Free Lgt. Regenerative Plating | -6/Data Miner | Free Cld. Gravmag System | -6/Data Miner | Free Imp. Energy Well | -6/Data Miner | Free Thunder Hammer | -6/Data Miner | Free Adv. VSS Leg | -6/Data Miner | Free Graphene Brace | -6/Data Miner | Free Phase Gun | -6/Data Miner | Free Hvy. Phase Cannon | -6/Data Miner | Free Adv. Force Field | -6/Data Miner | Free Adv. Recalibrator | -6/Data Miner | Free Imp. Antigrav System | -6/Data Miner | Free Adv. Thermal Shield | -6/Data Miner | Free Cld. Plasma Rifle | -5/Factory | Z-intel Exp. Heat Sink | -5/Factory | Z-intel Lgt. Neutrino Core | -5/Factory | Z-intel Neutron Cannon | -5/Factory | Z-intel Cld. VTOL Module | -5/Factory | Z-intel Enh. Force Rifle | -5/Factory | Z-intel Enh. Fission Core | -5/Factory | Z-intel Cld. Nuclear Pulse Thruster | -5/Factory | Z-intel Tesla Bomb Launcher | -5/Factory | Z-intel Imp. Matter Compressor | -5/Factory | Z-intel Adv. EM Disruption Field | -5/Factory | Z-intel Gui. EMP Blaster | -5/Factory | Z-intel F-cell Engine | -5/Factory | Z-intel Cld. Airjet | -5/Factory | Z-intel Cld. Plasma Cannon | -5/Factory | Z-intel Exp. Targeting Computer | -5/Factory | Z-intel Cld. Cesium-ion Thruster | -5/Factory | Z-intel Enh. Flexi-carbon Leg | -5/Factory | Z-intel Imp. Lightning Gun | -5/Factory | Z-intel Gravity Neutralizer | -5/Factory | Z-intel Cld. Fission Core | -5/Factory | Z-intel Imp. Airjet | -5/Factory | Z-intel Hvy. Proton Missile Launcher | -5/Factory | Z-intel Cld. Deuterium Engine | -5/Factory | Z-intel Prc. Matter Filter | -5/Extension | Z-intel Imp. Thermal Defense Suite | -5/Extension | Z-intel Impact Mace | -5/Extension | Z-intel Hvy. Gatling Laser | -5/Extension | Z-intel Imp. Spread Laser | -5/Extension | Z-intel Tiamat Missile Launcher | -5/Extension | Z-intel Enh. Armored Leg | -5/Extension | Z-intel Hvy. Proton Cannon | -5/Extension | Z-intel Biomechanical Wings | -5/Extension | Z-intel Prc. Energy Filter | -5/Extension | Z-intel Scatter Rocket Array | -5/Extension | Z-intel Mni. Smartbomb Launcher | -5/Extension | Z-intel Nuclear Pulse Array | -5/Hub_04(d) | Z-intel Linear Gravjet | -5/Hub_04(d) | Z-intel Nuclear Pulse Thruster | -5/Hub_04(d) | Z-intel Imp. Targeting Computer | -5/Hub_04(d) | Z-intel Imp. Particle Charger | -5/Hub_04(d) | Z-intel Triangulator | -5/Hub_04(d) | Z-intel Hvy. Hammer | -5/Hub_04(d) | Z-intel Imp. VSS Leg | -5/Hub_04(d) | Z-intel Hpw. Shock Rifle | -5/Hub_04(d) | Z-intel Fission Core | -5/Hub_04(d) | Z-intel Matter Compressor | -5/Hub_04(d) | Z-intel Force Booster | -5/Hub_04(d) | Z-intel Launcher Guidance Computer | -4/Factory | Z-intel Lgt. Angular Momentum Engine | -4/Factory | Z-intel Hyp. Mass Driver | -4/Factory | Z-intel Mass Driver | -4/Factory | Z-intel Adv. Power Amplifier | -4/Factory | Z-intel Imp. Weapon Shielding | -4/Factory | Z-intel Imp. Light Armor Plating | -4/Factory | Z-intel Hcp. Battery | -4/Factory | Z-intel Launcher Loader | -4/Factory | Z-intel Hvy. Gauss Cannon | -4/Factory | Z-intel Falx | -4/Factory | Z-intel Disruptor Cannon | -4/Factory | Z-intel Hyp. Gauss Cannon | -4/Factory | Z-intel Energy Well | -4/Factory | Z-intel Assault Drone Bay | -4/Zhirov | Free Exp. Optical Array | -4/Zhirov | Free Imp. Arc Thrower | -4/Zhirov | Free Robot Schematics ------------------ S-27 Virus | -6/Data Miner | Free Y-54 Guardian | -6/Data Miner | Free A-15 Conveyor | -6/Data Miner | Free B-48 Gladiator | -6/Data Miner | Free M-22 Extractor | -6/Data Miner | Free Y-64 Sentinel | -6/Data Miner | Free A-27 Freighter | -6/Data Miner | Free Fabricated ------------ Nothing Repaired ---------- Hcp. Storage Unit | 33% | -10/Materials Autogun | 19% | -8/Materials Autogun | 5% | -8/Materials Hvy. Assault Rifle | 22% | -8/Materials Lgt. Treads | 27% | -8/Materials Adv. Assault Cannon | 73% | -8/Storage Hrd. Medium Armor Plating | 72% | -8/Storage Exp. Sensor Array | 62% | -7/Factory | Broken Ion Burst Cannon | 50% | -7/Factory Exp. Sensor Array | 37% | -7/Factory Cld. Proton Cannon | 15% | -6/Factory Arm. Leg | 93% | -6/Factory | Broken Studied --------- Adv. Assault Cannon | -7/Factory | Hacked Great Axe | -7/Factory | Hacked Gauss Cannon | -7/Factory | Hacked Alien Tech Used ----------------- Integrated Dissipator Transdimensional Reconstructor Achievements -------------- Network Effect Challenges ------------ None Game ------ Seed MultinovaMediumPlating Manual? 0 Play Time 05:34:13 Cumulative 549.7 hours Start 2026.01.30 @ 18:27:36 End 2026.02.02 @ 13:48:02 Sessions 19 Manual Loads 0 Difficulty Rogue Special Mode None Game No. 319 Rogue 319 Adventurer 0 Explorer 0 Win Type - Total 17 Types 11/0/3/0/0/0/1/2/0/0 Lore% 87 Gallery% 83 Achievement% 68 Wizard Run 0 Options --------- Layout 1 ASCII 0 Keyboard 0 Movement Numpad Keybinds 0 Fullscreen 2 Font 24/Smallcaps Map View 50x40 Zoom Use 0% Tactical HUD 1 Map Filters NONE Filters NONE Steam 1 RUN: e856c0a7-86bc-4fe7-a645-a69ca881a585